Workbook

Sheet Wksh 1 - Market Experience
A1: Press TAB and directional arrow keys to read through the document. If macros are disabled, press and hold the ALT key and press the F, then I, and then N key. After that, select the Enable All Content option by pressing enter. (note that you can also press the C key to select "Enable All Content") Instructions can be found in cells K1 through K4. If screen reader fails to announce a cell after performing a dropdown selection, please press F2 and then ESC to force the screen reader to resume. | B1: Unified Rate Review v6.1 [assistive technology users, please reference cell A1 for instructions] | K1: To add a product to Worksheet 2 - Plan Product Info, select the Add Product button or Ctrl + Shift + P.
K2: To add a plan to Worksheet 2 - Plan Product Info, select the Add Plan button or Ctrl + Shift + L.
B3: Company Legal Name: | C3: Anthem Health Plans of Kentucky, Inc. | K3: To validate, select the Validate button or Ctrl + Shift + I.
B4: HIOS Issuer ID: | C4: 36239 | D4: State: | E4: KY | K4: To finalize, select the Finalize button or Ctrl + Shift + F.
B5: Effective Date of Rate Change(s): | C5: =MAX('Wksh 2 - Plan Product Info'!E19:BO19) -> 00:00:00 | D5: Market: | E5: Individual
B8: Market Level Calculations (Same for all Plans)
B11: Section I: Experience Period Data
B12: Experience Period: | D12: 2023-01-01 | E12: to | F12: =EDATE(D12,12)-1 -> 12/31/2023
E13: Total | F13: PMPM
B14: Allowed Claims | E14: 256326904.5 | F14: =E14/E19 -> 619.4553
B15: Reinsurance | E15: 0 | F15: =E15/E19 -> 0
B16: Incurred Claims in Experience Period | E16: 195429940.2 | F16: =E16/E19 -> 472.288
B17: Risk Adjustment | E17: -394293.23 | F17: =E17/E19 -> -0.9529
B18: Experience Period Premium | E18: 245612780.4 | F18: =E18/E19 -> 593.5629
B19: Experience Period Member Months | E19: ='Wksh 2 - Plan Product Info'!D33 -> 413794
B21: Section II: Projections
D22: Year 1 Trend | F22: Year 2 Trend
B23: Benefit Category | C23: Experience Period Index Rate PMPM | D23: Cost | E23: Utilization | F23: Cost | G23: Utilization | H23: Trended EHB Allowed Claims PMPM
B24: Inpatient Hospital | C24: 112.2954341 | D24: 1.030487126 | E24: 1.033688131 | F24: 1.030487126 | G24: 1.033688131 | H24: =PRODUCT(C24:G24) -> 127.4167
B25: Outpatient Hospital | C25: 233.7288349 | D25: 1.030487126 | E25: 1.033688131 | F25: 1.030487126 | G25: 1.033688131 | H25: 265.2018
B26: Professional | C26: 120.2399778 | D26: 1.030487126 | E26: 1.033688131 | F26: 1.030487126 | G26: 1.033688131 | H26: 136.431
B27: Other Medical | C27: 8.706483218 | D27: 1.030487126 | E27: 1.033688131 | F27: 1.030487126 | G27: 1.033688131 | H27: 9.8789
B28: Capitation | C28: 0.000400712457 | D28: 1.011574137 | E28: 1 | F28: 1.011574137 | G28: 1 | H28: 0.0004
B29: Prescription Drug | C29: 143.9088692 | D29: 1.044048756 | E29: 1.105175297 | F29: 1.044048756 | G29: 1.105175297 | H29: 191.5982
B30: Total | C30: =SUM(C24:C29) -> 618.88 | H30: =SUM(H24:H29) -> 730.527
B32: Morbidity Adjustment | F32: 1.002
B33: Demographic Shift | F33: 0.97
B34: Plan Design Changes | F34: 1.003
B35: Other | F35: 1.079197966
B36: Adjusted Trended EHB Allowed Claims PMPM for | D36: =IF(C5<>"",C5,"") -> 1/1/2025 | F36: =H30*PRODUCT(F32:F35) -> 768.56
B38: Manual EHB Allowed Claims PMPM | F38: 0
B39: Applied Credibility % | F39: 1
G41: Projected Period Totals
B42: Projected Index Rate for | D42: =IF(C5<>"",C5,"") -> 1/1/2025 | F42: =ROUND(F39*F36+(1-F39)*F38,2) -> 768.56 | G42: =F42*F48 -> 316056465.9
B43: Reinsurance | F43: 0 | G43: =F43*F48 -> 0
B44: Risk Adjustment Payment/Charge | F44: 0.8917032825 | G44: =F44*F48 -> 366696.9243
B45: Exchange User Fees | F45: 0 | G45: =F45*F46*F48 -> 0
B46: Market Adjusted Index Rate | F46: =(F42-F43-F44)/(1-F45) -> 767.6683 | G46: =F46*F48 -> 315689769
B48: Projected Member Months | F48: ='Wksh 2 - Plan Product Info'!D73 -> 411232
B50: Information Not Releasable to the Public Unless Authorized by Law: This information has not been publically disclosed and may be privileged and confidential. It is for internal government use only and must not be disseminated, distributed, or copied to persons not authorized to receive the information. Unauthorized disclosure may result in prosecution to the full extent of the law.

Sheet Wksh 2 - Plan Product Info
A1: Press TAB and directional arrow keys to read through the document. If macros are disabled, press and hold the ALT key and press the F, then I, and then N key. After that, select the Enable All Content option by pressing enter. (note that you can also press the C key to select "Enable All Content") Instructions can be found in cells P1 through P6. If screen reader fails to announce a cell after performing a dropdown selection, please press F2 and then ESC to force the screen reader to resume. | C1: Product-Plan Data Collection [assistive technology users, please reference cell A1 for instructions] | P1: To add a product to Worksheet 2 - Plan Product Info, select the Add Product button or Ctrl + Shift + P.
P2: To add a plan to Worksheet 2 - Plan Product Info, select the Add Plan button or Ctrl + Shift + L.
C3: Company Legal Name: | D3: =IF('Wksh 1 - Market Experience'!C3<>"", 'Wksh 1 - Market Experience'!C3,"") ->  | P3: To validate, select the Validate button or Ctrl + Shift + I.
C4: HIOS Issuer ID: | D4: =IF('Wksh 1 - Market Experience'!C4<>"", 'Wksh 1 - Market Experience'!C4,"") ->  | E4: State: | F4: =IF('Wksh 1 - Market Experience'!E4<>"",'Wksh 1 - Market Experience'!E4,"") ->  | P4: To finalize, select the Finalize button or Ctrl + Shift + F.
C5: Effective Date of Rate Change(s): | D5: =IF('Wksh 1 - Market Experience'!C5<>"", 'Wksh 1 - Market Experience'!C5,"") -> 00:00:00 | E5: Market: | F5: =IF('Wksh 1 - Market Experience'!E5<>"",'Wksh 1 - Market Experience'!E5,"") ->  | P5: To remove a product, navigate to the corresponding Product Name/Product ID field and select the Remove Product button or Ctrl + Shift + Q.
P6: To remove a plan, navigate to the corresponding Plan Name/Plan ID field and select the Remove Plan button or Ctrl + Shift + A.
C7: Product/Plan Level Calculations
B9: Field # | C9: Section I: General Product and Plan Information
B10: 1.1 | C10: Product Name | E10: Terminated Products | F10: HMO On Exchange
B11: 1.2 | C11: Product ID | E11: 36239KY017 | F11: 36239KY114
B12: 1.3 | C12: Plan Name | E12: 2023 Experience | F12: Anthem Catastrophic Pathway Transition X HMO 9200 (+ Incentives) | G12: Anthem Catastrophic Pathway Transition X HMO 9200 (+ Incentives) | H12: Anthem Catastrophic Pathway Transition X HMO 9200 (+ Incentives) | I12: Anthem Catastrophic Pathway Transition X HMO 9200 (+ Incentives) | J12: Anthem Catastrophic Pathway X HMO 9200 (+ Incentives) | K12: Anthem Bronze Pathway X Transition HMO 7700 ($0 Virtual PCP + $0 Select Drugs + Incentives) | L12: Anthem Bronze Pathway X Transition HMO 7700 ($0 Virtual PCP + $0 Select Drugs + Incentives) | M12: Anthem Bronze Pathway X Transition HMO 7700 ($0 Virtual PCP + $0 Select Drugs + Incentives) | N12: Anthem Bronze Pathway X Transition HMO 7700 ($0 Virtual PCP + $0 Select Drugs + Incentives) | O12: Anthem Bronze Pathway X HMO 9200 ($0 Virtual PCP + $0 Select Drugs + Incentives) | P12: Anthem Bronze Pathway X HMO 7700 ($0 Virtual PCP + $0 Select Drugs + Incentives) | Q12: Anthem Bronze Pathway X Transition HMO 6800 for HSA ( + Incentives) | R12: Anthem Bronze Pathway X Transition HMO 6800 for HSA ( + Incentives) | S12: Anthem Bronze Pathway X Transition HMO 6800 for HSA ( + Incentives) | T12: Anthem Bronze Pathway X Transition HMO 6800 for HSA ( + Incentives) | U12: Anthem Bronze Pathway X Transition HMO 7300 ($0 Virtual PCP + $0 Select Drugs + Incentives) | V12: Anthem Bronze Pathway X Transition HMO 7300 ($0 Virtual PCP + $0 Select Drugs + Incentives) | W12: Anthem Bronze Pathway X Transition HMO 7300 ($0 Virtual PCP + $0 Select Drugs + Incentives) | X12: Anthem Bronze Pathway X Transition HMO 7300 ($0 Virtual PCP + $0 Select Drugs + Incentives) | Y12: Anthem Bronze Pathway X HMO 6700 ($0 Virtual PCP + $0 Select Drugs + Incentives) | Z12: Anthem Bronze Pathway X Transition HMO 9200 ($0 Virtual PCP + $0 Select Drugs + Incentives) | AA12: Anthem Bronze Pathway X Transition HMO 9200 ($0 Virtual PCP + $0 Select Drugs + Incentives) | AB12: Anthem Bronze Pathway X Transition HMO 9200 ($0 Virtual PCP + $0 Select Drugs + Incentives) | AC12: Anthem Bronze Pathway X Transition HMO 9200 ($0 Virtual PCP + $0 Select Drugs + Incentives) | AD12: Anthem Bronze Pathway X HMO 6700 for HSA ( + Incentives) | AE12: Anthem Bronze Pathway X HMO 7000 Adult Dental/Vision ($0 Virtual PCP + $0 Select Rx) | AF12: Anthem Bronze Pathway X Transition HMO 7000 Adult Dental/Vision ($0 Virtual PCP + $0 Select Rx) | AG12: Anthem Bronze Pathway X Transition HMO 7000 Adult Dental/Vision ($0 Virtual PCP + $0 Select Rx) | AH12: Anthem Bronze Pathway X Transition HMO 7000 Adult Dental/Vision ($0 Virtual PCP + $0 Select Rx) | AI12: Anthem Bronze Pathway X Transition HMO 7000 Adult Dental/Vision ($0 Virtual PCP + $0 Select Rx) | AJ12: Anthem Bronze Pathway X HMO 8250 for HSA ( + Incentives) | AK12: Anthem Bronze Pathway X Transition HMO 8250 for HSA ( + Incentives) | AL12: Anthem Bronze Pathway X Transition HMO 8250 for HSA ( + Incentives) | AM12: Anthem Bronze Pathway X Transition HMO 8250 for HSA ( + Incentives) | AN12: Anthem Bronze Pathway X Transition HMO 8250 for HSA ( + Incentives) | AO12: Anthem Bronze Pathway X Transition HMO 6000 for HSA ( + Incentives) | AP12: Anthem Bronze Pathway X Transition HMO 6000 for HSA ( + Incentives) | AQ12: Anthem Bronze Pathway X Transition HMO 6000 for HSA ( + Incentives) | AR12: Anthem Bronze Pathway X Transition HMO 6000 for HSA ( + Incentives) | AS12: Anthem Bronze Pathway X HMO 6000 for HSA ( + Incentives) | AT12: Anthem Silver Pathway X Transition HMO 6500 ($0 Virtual PCP + $0 Select Drugs + Incentives) | AU12: Anthem Silver Pathway X Transition HMO 6500 ($0 Virtual PCP + $0 Select Drugs + Incentives) | AV12: Anthem Silver Pathway X Transition HMO 6500 ($0 Virtual PCP + $0 Select Drugs + Incentives) | AW12: Anthem Silver Pathway X Transition HMO 6500 ($0 Virtual PCP + $0 Select Drugs + Incentives) | AX12: Anthem Silver Pathway X HMO 6000 ($0 Virtual PCP + $0 Select Drugs + Incentives) | AY12: Anthem Silver Pathway X HMO 500 ($0 Virtual PCP + $0 Select Drugs + Incentives) | AZ12: Anthem Silver Pathway X HMO 3500 ($0 Virtual PCP + $0 Select Drugs + Incentives) | BA12: Anthem Silver Pathway X HMO 3500 for HSA ( + Incentives) | BB12: Anthem Silver Pathway X Transition HMO 4200 for HSA ( + Incentives) | BC12: Anthem Silver Pathway X Transition HMO 4200 for HSA ( + Incentives) | BD12: Anthem Silver Pathway X Transition HMO 4200 for HSA ( + Incentives) | BE12: Anthem Silver Pathway X Transition HMO 4200 for HSA ( + Incentives) | BF12: Anthem Silver Pathway X HMO 4000 Adult Dental/Vision ($0 Virtual PCP + $0 Select Rx) | BG12: Anthem Silver Pathway X Transition HMO 4000 Adult Dental/Vision ($0 Virtual PCP + $0 Select Rx) | BH12: Anthem Silver Pathway X Transition HMO 4000 Adult Dental/Vision ($0 Virtual PCP + $0 Select Rx) | BI12: Anthem Silver Pathway X Transition HMO 4000 Adult Dental/Vision ($0 Virtual PCP + $0 Select Rx) | BJ12: Anthem Silver Pathway X Transition HMO 4000 Adult Dental/Vision ($0 Virtual PCP + $0 Select Rx) | BK12: Anthem Gold Pathway X HMO 2300 ($0 Virtual PCP + $0 Select Drugs + Incentives) | BL12: Anthem Gold Pathway X Transition HMO 2300 ($0 Virtual PCP + $0 Select Drugs + Incentives) | BM12: Anthem Gold Pathway X Transition HMO 2300 ($0 Virtual PCP + $0 Select Drugs + Incentives) | BN12: Anthem Gold Pathway X Transition HMO 2300 ($0 Virtual PCP + $0 Select Drugs + Incentives) | BO12: Anthem Gold Pathway X Transition HMO 2300 ($0 Virtual PCP + $0 Select Drugs + Incentives)
B13: 1.4 | C13: Plan ID (Standard Component ID) | E13: 36239KY0170000 | F13: 36239KY1140043 | G13: 36239KY1140056 | H13: 36239KY1140057 | I13: 36239KY1140067 | J13: 36239KY1140039 | K13: 36239KY1140077 | L13: 36239KY1140078 | M13: 36239KY1140079 | N13: 36239KY1140080 | O13: 36239KY1140071 | P13: 36239KY1140076 | Q13: 36239KY1140042 | R13: 36239KY1140053 | S13: 36239KY1140054 | T13: 36239KY1140055 | U13: 36239KY1140038 | V13: 36239KY1140051 | W13: 36239KY1140052 | X13: 36239KY1140065 | Y13: 36239KY1140001 | Z13: 36239KY1140072 | AA13: 36239KY1140073 | AB13: 36239KY1140074 | AC13: 36239KY1140075 | AD13: 36239KY1140034 | AE13: 36239KY1140090 | AF13: 36239KY1140085 | AG13: 36239KY1140086 | AH13: 36239KY1140087 | AI13: 36239KY1140088 | AJ13: 36239KY1140096 | AK13: 36239KY1140097 | AL13: 36239KY1140098 | AM13: 36239KY1140099 | AN13: 36239KY1140100 | AO13: 36239KY1140092 | AP13: 36239KY1140093 | AQ13: 36239KY1140094 | AR13: 36239KY1140095 | AS13: 36239KY1140091 | AT13: 36239KY1140040 | AU13: 36239KY1140059 | AV13: 36239KY1140066 | AW13: 36239KY1140058 | AX13: 36239KY1140045 | AY13: 36239KY1140064 | AZ13: 36239KY1140005 | BA13: 36239KY1140035 | BB13: 36239KY1140060 | BC13: 36239KY1140046 | BD13: 36239KY1140061 | BE13: 36239KY1140062 | BF13: 36239KY1140089 | BG13: 36239KY1140081 | BH13: 36239KY1140082 | BI13: 36239KY1140083 | BJ13: 36239KY1140084 | BK13: 36239KY1140009 | BL13: 36239KY1140044 | BM13: 36239KY1140068 | BN13: 36239KY1140069 | BO13: 36239KY1140070
B14: 1.5 | C14: Metal | E14: Not Applicable | F14: Catastrophic | G14: Catastrophic | H14: Catastrophic | I14: Catastrophic | J14: Catastrophic | K14: Bronze | L14: Bronze | M14: Bronze | N14: Bronze | O14: Bronze | P14: Bronze | Q14: Bronze | R14: Bronze | S14: Bronze | T14: Bronze | U14: Bronze | V14: Bronze | W14: Bronze | X14: Bronze | Y14: Bronze | Z14: Bronze | AA14: Bronze | AB14: Bronze | AC14: Bronze | AD14: Bronze | AE14: Bronze | AF14: Bronze | AG14: Bronze | AH14: Bronze | AI14: Bronze | AJ14: Bronze | AK14: Bronze | AL14: Bronze | AM14: Bronze | AN14: Bronze | AO14: Bronze | AP14: Bronze | AQ14: Bronze | AR14: Bronze | AS14: Bronze | AT14: Silver | AU14: Silver | AV14: Silver | AW14: Silver | AX14: Silver | AY14: Silver | AZ14: Silver | BA14: Silver | BB14: Silver | BC14: Silver | BD14: Silver | BE14: Silver | BF14: Silver | BG14: Silver | BH14: Silver | BI14: Silver | BJ14: Silver | BK14: Gold | BL14: Gold | BM14: Gold | BN14: Gold | BO14: Gold
B15: 1.6 | C15: AV Metal Value | E15: 0 | F15: 0.609 | G15: 0.609 | H15: 0.609 | I15: 0.609 | J15: 0.609 | K15: 0.647 | L15: 0.647 | M15: 0.647 | N15: 0.647 | O15: 0.597 | P15: 0.647 | Q15: 0.641 | R15: 0.641 | S15: 0.641 | T15: 0.641 | U15: 0.648 | V15: 0.648 | W15: 0.648 | X15: 0.648 | Y15: 0.649 | Z15: 0.597 | AA15: 0.597 | AB15: 0.597 | AC15: 0.597 | AD15: 0.644 | AE15: 0.648 | AF15: 0.648 | AG15: 0.648 | AH15: 0.648 | AI15: 0.648 | AJ15: 0.615 | AK15: 0.615 | AL15: 0.615 | AM15: 0.615 | AN15: 0.615 | AO15: 0.623 | AP15: 0.623 | AQ15: 0.623 | AR15: 0.623 | AS15: 0.623 | AT15: 0.7 | AU15: 0.7 | AV15: 0.7 | AW15: 0.7 | AX15: 0.7 | AY15: 0.703 | AZ15: 0.715 | BA15: 0.714 | BB15: 0.706 | BC15: 0.706 | BD15: 0.706 | BE15: 0.706 | BF15: 0.72 | BG15: 0.72 | BH15: 0.72 | BI15: 0.72 | BJ15: 0.72 | BK15: 0.791 | BL15: 0.791 | BM15: 0.791 | BN15: 0.791 | BO15: 0.791
B16: 1.7 | C16: Plan Category | E16: Terminated | F16: Renewing | G16: Renewing | H16: Renewing | I16: Renewing | J16: Renewing | K16: Renewing | L16: Renewing | M16: Renewing | N16: Renewing | O16: Renewing | P16: Renewing | Q16: Renewing | R16: Renewing | S16: Renewing | T16: Renewing | U16: Renewing | V16: Renewing | W16: Renewing | X16: Renewing | Y16: Renewing | Z16: Renewing | AA16: Renewing | AB16: Renewing | AC16: Renewing | AD16: Renewing | AE16: Renewing | AF16: Renewing | AG16: Renewing | AH16: Renewing | AI16: Renewing | AJ16: New | AK16: New | AL16: New | AM16: New | AN16: New | AO16: New | AP16: New | AQ16: New | AR16: New | AS16: New | AT16: Renewing | AU16: Renewing | AV16: Renewing | AW16: Renewing | AX16: Renewing | AY16: Renewing | AZ16: Renewing | BA16: Renewing | BB16: Renewing | BC16: Renewing | BD16: Renewing | BE16: Renewing | BF16: Renewing | BG16: Renewing | BH16: Renewing | BI16: Renewing | BJ16: Renewing | BK16: Renewing | BL16: Renewing | BM16: Renewing | BN16: Renewing | BO16: Renewing
B17: 1.8 | C17: Plan Type | E17: HMO | F17: HMO | G17: HMO | H17: HMO | I17: HMO | J17: HMO | K17: HMO | L17: HMO | M17: HMO | N17: HMO | O17: HMO | P17: HMO | Q17: HMO | R17: HMO | S17: HMO | T17: HMO | U17: HMO | V17: HMO | W17: HMO | X17: HMO | Y17: HMO | Z17: HMO | AA17: HMO | AB17: HMO | AC17: HMO | AD17: HMO | AE17: HMO | AF17: HMO | AG17: HMO | AH17: HMO | AI17: HMO | AJ17: HMO | AK17: HMO | AL17: HMO | AM17: HMO | AN17: HMO | AO17: HMO | AP17: HMO | AQ17: HMO | AR17: HMO | AS17: HMO | AT17: HMO | AU17: HMO | AV17: HMO | AW17: HMO | AX17: HMO | AY17: HMO | AZ17: HMO | BA17: HMO | BB17: HMO | BC17: HMO | BD17: HMO | BE17: HMO | BF17: HMO | BG17: HMO | BH17: HMO | BI17: HMO | BJ17: HMO | BK17: HMO | BL17: HMO | BM17: HMO | BN17: HMO | BO17: HMO
B18: 1.9 | C18: Exchange Plan? | E18: No | F18: Yes | G18: Yes | H18: Yes | I18: Yes | J18: Yes | K18: Yes | L18: Yes | M18: Yes | N18: Yes | O18: Yes | P18: Yes | Q18: Yes | R18: Yes | S18: Yes | T18: Yes | U18: Yes | V18: Yes | W18: Yes | X18: Yes | Y18: Yes | Z18: Yes | AA18: Yes | AB18: Yes | AC18: Yes | AD18: Yes | AE18: Yes | AF18: Yes | AG18: Yes | AH18: Yes | AI18: Yes | AJ18: Yes | AK18: Yes | AL18: Yes | AM18: Yes | AN18: Yes | AO18: Yes | AP18: Yes | AQ18: Yes | AR18: Yes | AS18: Yes | AT18: Yes | AU18: Yes | AV18: Yes | AW18: Yes | AX18: Yes | AY18: Yes | AZ18: Yes | BA18: Yes | BB18: Yes | BC18: Yes | BD18: Yes | BE18: Yes | BF18: Yes | BG18: Yes | BH18: Yes | BI18: Yes | BJ18: Yes | BK18: Yes | BL18: Yes | BM18: Yes | BN18: Yes | BO18: Yes
B19: 1.10 | C19: Effective Date of Proposed Rates | E19: 2025-01-01 | F19: 2025-01-01 | G19: 2025-01-01 | H19: 2025-01-01 | I19: 2025-01-01 | J19: 2025-01-01 | K19: 2025-01-01 | L19: 2025-01-01 | M19: 2025-01-01 | N19: 2025-01-01 | O19: 2025-01-01 | P19: 2025-01-01 | Q19: 2025-01-01 | R19: 2025-01-01 | S19: 2025-01-01 | T19: 2025-01-01 | U19: 2025-01-01 | V19: 2025-01-01 | W19: 2025-01-01 | X19: 2025-01-01 | Y19: 2025-01-01 | Z19: 2025-01-01 | AA19: 2025-01-01 | AB19: 2025-01-01 | AC19: 2025-01-01 | AD19: 2025-01-01 | AE19: 2025-01-01 | AF19: 2025-01-01 | AG19: 2025-01-01 | AH19: 2025-01-01 | AI19: 2025-01-01 | AJ19: 2025-01-01 | AK19: 2025-01-01 | AL19: 2025-01-01 | AM19: 2025-01-01 | AN19: 2025-01-01 | AO19: 2025-01-01 | AP19: 2025-01-01 | AQ19: 2025-01-01 | AR19: 2025-01-01 | AS19: 2025-01-01 | AT19: 2025-01-01 | AU19: 2025-01-01 | AV19: 2025-01-01 | AW19: 2025-01-01 | AX19: 2025-01-01 | AY19: 2025-01-01 | AZ19: 2025-01-01 | BA19: 2025-01-01 | BB19: 2025-01-01 | BC19: 2025-01-01 | BD19: 2025-01-01 | BE19: 2025-01-01 | BF19: 2025-01-01 | BG19: 2025-01-01 | BH19: 2025-01-01 | BI19: 2025-01-01 | BJ19: 2025-01-01 | BK19: 2025-01-01 | BL19: 2025-01-01 | BM19: 2025-01-01 | BN19: 2025-01-01 | BO19: 2025-01-01
B20: 1.11 | C20: Cumulative Rate Change % (over 12 mos prior) | E20: 0 | F20: 0.1753 | G20: 0.1627 | H20: 0.1544 | I20: 0.1833 | J20: 0.2093 | K20: 0.1371 | L20: 0.1516 | M20: 0.1265 | N20: 0.1128 | O20: 0.1826 | P20: 0.1716 | Q20: 0.1175 | R20: 0.1306 | S20: 0.1111 | T20: 0.0924 | U20: 0.1245 | V20: 0.1115 | W20: 0.1006 | X20: 0.1363 | Y20: 0.1494 | Z20: 0.1439 | AA20: 0.1578 | AB20: 0.1346 | AC20: 0.136 | AD20: 0.145 | AE20: 0.1804 | AF20: 0.1428 | AG20: 0.1525 | AH20: 0.131 | AI20: 0.1285 | AJ20: 0 | AK20: 0 | AL20: 0 | AM20: 0 | AN20: 0 | AO20: 0 | AP20: 0 | AQ20: 0 | AR20: 0 | AS20: 0 | AT20: 0.0426 | AU20: 0.0222 | AV20: 0.0549 | AW20: 0.0341 | AX20: 0.0634 | AY20: 0.0989 | AZ20: 0.1061 | BA20: 0.075 | BB20: 0.0724 | BC20: 0.0564 | BD20: 0.0405 | BE20: 0.0282 | BF20: 0.1219 | BG20: 0.087 | BH20: 0.1039 | BI20: 0.0788 | BJ20: 0.0599 | BK20: 0.0574 | BL20: 0.0319 | BM20: 0.0356 | BN20: 0.014 | BO20: -0.0099
B21: 1.12 | C21: Product Rate Increase % | E21: =IF(SUMPRODUCT((E16:E16="Renewing")*((E14:E14="Platinum")+(E14:E14="Gold")+(E14:E14="Silver")+(E14:E14="Bronze")+(E14:E14="Catastrophic")))=0, 0, ROUND(ROUND(SUMPRODUCT(1+E20:E20,E34:E34,E35:E35,--(E16:E16="Renewing")*((E14:E14="Platinum")+(E14:E14="Gold")+(E14:E14="Silver")+(E14:E14="Bronze")+(E14:E14="Catastrophic")))/SUMPRODUCT(E34:E34,E35:E35,--(E16:E16="Renewing")*((E14:E14="Platinum")+(E14:E14="Gold")+(E14:E14="Silver")+(E14:E14="Bronze")+(E14:E14="Catastrophic"))), 4)-1, 4)) -> 0 | F21: =IF(SUMPRODUCT((F16:BO16="Renewing")*((F14:BO14="Platinum")+(F14:BO14="Gold")+(F14:BO14="Silver")+(F14:BO14="Bronze")+(F14:BO14="Catastrophic")))=0, 0, ROUND(ROUND(SUMPRODUCT(1+F20:BO20,F34:BO34,F35:BO35,--(F16:BO16="Renewing")*((F14:BO14="Platinum")+(F14:BO14="Gold")+(F14:BO14="Silver")+(F14:BO14="Bronze")+(F14:BO14="Catastrophic")))/SUMPRODUCT(F34:BO34,F35:BO35,--(F16:BO16="Renewing")*((F14:BO14="Platinum")+(F14:BO14="Gold")+(F14:BO14="Silver")+(F14:BO14="Bronze")+(F14:BO14="Catastrophic"))), 4)-1, 4)) -> 0
B22: 1.13 | C22: Submission Level Rate Increase % | E22: =IF(SUMPRODUCT((E16:BO16="Renewing")*((E14:BO14="Platinum")+(E14:BO14="Gold")+(E14:BO14="Silver")+(E14:BO14="Bronze")+(E14:BO14="Catastrophic")))=0, 0, ROUND(ROUND(SUMPRODUCT(1+E20:BO20,E34:BO34,E35:BO35,--(E16:BO16="Renewing")*((E14:BO14="Platinum")+(E14:BO14="Gold")+(E14:BO14="Silver")+(E14:BO14="Bronze")+(E14:BO14="Catastrophic")))/SUMPRODUCT(E34:BO34,E35:BO35,--(E16:BO16="Renewing")*((E14:BO14="Platinum")+(E14:BO14="Gold")+(E14:BO14="Silver")+(E14:BO14="Bronze")+(E14:BO14="Catastrophic"))), 4)-1, 4)) -> 0
A24: Worksheet 1 Totals | C24: Section II: Experience Period and Current Plan Level Information
B25: 2.1 | C25: Plan ID (Standard Component ID) | D25: Total | E25: =E13 -> 0 | F25: =F13 -> 0 | G25: =G13 -> 0 | H25: =H13 -> 0 | I25: =I13 -> 0 | J25: =J13 -> 0 | K25: =K13 -> 0 | L25: =L13 -> 0 | M25: =M13 -> 0 | N25: =N13 -> 0 | O25: =O13 -> 0 | P25: =P13 -> 0 | Q25: =Q13 -> 0 | R25: =R13 -> 0 | S25: =S13 -> 0 | T25: =T13 -> 0 | U25: =U13 -> 0 | V25: =V13 -> 0 | W25: =W13 -> 0 | X25: =X13 -> 0 | Y25: =Y13 -> 0 | Z25: =Z13 -> 0 | AA25: =AA13 -> 0 | AB25: =AB13 -> 0 | AC25: =AC13 -> 0 | AD25: =AD13 -> 0 | AE25: =AE13 -> 0 | AF25: =AF13 -> 0 | AG25: =AG13 -> 0 | AH25: =AH13 -> 0 | AI25: =AI13 -> 0 | AJ25: =AJ13 -> 0 | AK25: =AK13 -> 0 | AL25: =AL13 -> 0 | AM25: =AM13 -> 0 | AN25: =AN13 -> 0 | AO25: =AO13 -> 0 | AP25: =AP13 -> 0 | AQ25: =AQ13 -> 0 | AR25: =AR13 -> 0 | AS25: =AS13 -> 0 | AT25: =AT13 -> 0 | AU25: =AU13 -> 0 | AV25: =AV13 -> 0 | AW25: =AW13 -> 0 | AX25: =AX13 -> 0 | AY25: =AY13 -> 0 | AZ25: =AZ13 -> 0 | BA25: =BA13 -> 0 | BB25: =BB13 -> 0 | BC25: =BC13 -> 0 | BD25: =BD13 -> 0 | BE25: =BE13 -> 0 | BF25: =BF13 -> 0 | BG25: =BG13 -> 0 | BH25: =BH13 -> 0 | BI25: =BI13 -> 0 | BJ25: =BJ13 -> 0 | BK25: =BK13 -> 0 | BL25: =BL13 -> 0 | BM25: =BM13 -> 0 | BN25: =BN13 -> 0 | BO25: =BO13 -> 0
A26: ='Wksh 1 - Market Experience'!E14 -> 0 | B26: 2.2 | C26: Allowed Claims | D26: =SUM(E26:XFD26) -> 256261649.9 | E26: =37616126.82 -> 0 | F26: =226814.13 -> 0 | G26: =211759.09 -> 0 | H26: =19403.85 -> 0 | I26: =103702.37 -> 0 | J26: =473599.32 -> 0 | K26: =732535 -> 0 | L26: =421025.56 -> 0 | M26: =397422.88 -> 0 | N26: =54712.9 -> 0 | O26: =2857558.39 -> 0 | P26: =3169748.89 -> 0 | Q26: =4095854.58 -> 0 | R26: =2499638.67 -> 0 | S26: =1496328.96 -> 0 | T26: =434022.45 -> 0 | U26: =2514608.45 -> 0 | V26: =398829.41 -> 0 | W26: =258890.85 -> 0 | X26: =854166.34 -> 0 | Y26: =16055473.76 -> 0 | Z26: =1663158.56 -> 0 | AA26: =182591.13 -> 0 | AB26: =609019.03 -> 0 | AC26: =461054.72 -> 0 | AD26: =19029980.01 -> 0 | AE26: =0 -> 0 | AF26: =0 -> 0 | AG26: =0 -> 0 | AH26: =0 -> 0 | AI26: =0 -> 0 | AJ26: =0 -> 0 | AK26: =0 -> 0 | AL26: =0 -> 0 | AM26: =0 -> 0 | AN26: =0 -> 0 | AO26: =0 -> 0 | AP26: =0 -> 0 | AQ26: =0 -> 0 | AR26: =0 -> 0 | AS26: =0 -> 0 | AT26: =11837220.18 -> 0 | AU26: =548000.22 -> 0 | AV26: =4588479.31 -> 0 | AW26: =3859580.23 -> 0 | AX26: =54187962.89 -> 0 | AY26: =7319756.61 -> 0 | AZ26: =34904087.67 -> 0 | BA26: =12432475.93 -> 0 | BB26: =4872226.22 -> 0 | BC26: =9842438.39 -> 0 | BD26: =2653327.46 -> 0 | BE26: =720265.77 -> 0 | BF26: =0 -> 0 | BG26: =0 -> 0 | BH26: =0 -> 0 | BI26: =0 -> 0 | BJ26: =0 -> 0 | BK26: =9129517.17 -> 0 | BL26: =1887201.69 -> 0 | BM26: =174375.99 -> 0 | BN26: =359192.02 -> 0 | BO26: =107516.03 -> 0
A27: ='Wksh 1 - Market Experience'!E15 -> 0 | B27: 2.3 | C27: Reinsurance | D27: =SUM(E27:XFD27) -> 0 | E27: =0 -> 0 | F27: =0 -> 0 | G27: =0 -> 0 | H27: =0 -> 0 | I27: =0 -> 0 | J27: =0 -> 0 | K27: =0 -> 0 | L27: =0 -> 0 | M27: =0 -> 0 | N27: =0 -> 0 | O27: =0 -> 0 | P27: =0 -> 0 | Q27: =0 -> 0 | R27: =0 -> 0 | S27: =0 -> 0 | T27: =0 -> 0 | U27: =0 -> 0 | V27: =0 -> 0 | W27: =0 -> 0 | X27: =0 -> 0 | Y27: =0 -> 0 | Z27: =0 -> 0 | AA27: =0 -> 0 | AB27: =0 -> 0 | AC27: =0 -> 0 | AD27: =0 -> 0 | AE27: =0 -> 0 | AF27: =0 -> 0 | AG27: =0 -> 0 | AH27: =0 -> 0 | AI27: =0 -> 0 | AJ27: =0 -> 0 | AK27: =0 -> 0 | AL27: =0 -> 0 | AM27: =0 -> 0 | AN27: =0 -> 0 | AO27: =0 -> 0 | AP27: =0 -> 0 | AQ27: =0 -> 0 | AR27: =0 -> 0 | AS27: =0 -> 0 | AT27: =0 -> 0 | AU27: =0 -> 0 | AV27: =0 -> 0 | AW27: =0 -> 0 | AX27: =0 -> 0 | AY27: =0 -> 0 | AZ27: =0 -> 0 | BA27: =0 -> 0 | BB27: =0 -> 0 | BC27: =0 -> 0 | BD27: =0 -> 0 | BE27: =0 -> 0 | BF27: =0 -> 0 | BG27: =0 -> 0 | BH27: =0 -> 0 | BI27: =0 -> 0 | BJ27: =0 -> 0 | BK27: =0 -> 0 | BL27: =0 -> 0 | BM27: =0 -> 0 | BN27: =0 -> 0 | BO27: =0 -> 0
B28: 2.4 | C28: Member Cost Sharing | D28: =SUM(E28:XFD28) -> 60857294.14 | E28: =9408363.55 -> 0 | F28: =226020 -> 0 | G28: =60068.89 -> 0 | H28: =24406.32 -> 0 | I28: =39630.82 -> 0 | J28: =308941.96 -> 0 | K28: =464727.14 -> 0 | L28: =171977.81 -> 0 | M28: =224178.64 -> 0 | N28: =25378.04 -> 0 | O28: =1236956.14 -> 0 | P28: =1018238.11 -> 0 | Q28: =1422231.84 -> 0 | R28: =875217.56 -> 0 | S28: =468090.06 -> 0 | T28: =90724.07 -> 0 | U28: =1271314.2 -> 0 | V28: =259729.89 -> 0 | W28: =145192.51 -> 0 | X28: =414276.11 -> 0 | Y28: =5177569.5 -> 0 | Z28: =748960.39 -> 0 | AA28: =150167.4 -> 0 | AB28: =374863.06 -> 0 | AC28: =62221.8 -> 0 | AD28: =5341365.24 -> 0 | AE28: =0 -> 0 | AF28: =0 -> 0 | AG28: =0 -> 0 | AH28: =0 -> 0 | AI28: =0 -> 0 | AJ28: =0 -> 0 | AK28: =0 -> 0 | AL28: =0 -> 0 | AM28: =0 -> 0 | AN28: =0 -> 0 | AO28: =0 -> 0 | AP28: =0 -> 0 | AQ28: =0 -> 0 | AR28: =0 -> 0 | AS28: =0 -> 0 | AT28: =2711588.91 -> 0 | AU28: =181792.2 -> 0 | AV28: =846670.65 -> 0 | AW28: =763327.82 -> 0 | AX28: =9037376.47 -> 0 | AY28: =1676730.82 -> 0 | AZ28: =7912335.12 -> 0 | BA28: =2118572.66 -> 0 | BB28: =1040306.46 -> 0 | BC28: =1820266.02 -> 0 | BD28: =452664.31 -> 0 | BE28: =121321.51 -> 0 | BF28: =0 -> 0 | BG28: =0 -> 0 | BH28: =0 -> 0 | BI28: =0 -> 0 | BJ28: =0 -> 0 | BK28: =1567153.09 -> 0 | BL28: =411775.89 -> 0 | BM28: =47570.61 -> 0 | BN28: =124511.74 -> 0 | BO28: =12518.81 -> 0
B29: 2.5 | C29: Cost Sharing Reduction | D29: =SUM(E29:XFD29) -> 0 | E29: =0 -> 0 | F29: =0 -> 0 | G29: =0 -> 0 | H29: =0 -> 0 | I29: =0 -> 0 | J29: =0 -> 0 | K29: =0 -> 0 | L29: =0 -> 0 | M29: =0 -> 0 | N29: =0 -> 0 | O29: =0 -> 0 | P29: =0 -> 0 | Q29: =0 -> 0 | R29: =0 -> 0 | S29: =0 -> 0 | T29: =0 -> 0 | U29: =0 -> 0 | V29: =0 -> 0 | W29: =0 -> 0 | X29: =0 -> 0 | Y29: =0 -> 0 | Z29: =0 -> 0 | AA29: =0 -> 0 | AB29: =0 -> 0 | AC29: =0 -> 0 | AD29: =0 -> 0 | AE29: =0 -> 0 | AF29: =0 -> 0 | AG29: =0 -> 0 | AH29: =0 -> 0 | AI29: =0 -> 0 | AJ29: =0 -> 0 | AK29: =0 -> 0 | AL29: =0 -> 0 | AM29: =0 -> 0 | AN29: =0 -> 0 | AO29: =0 -> 0 | AP29: =0 -> 0 | AQ29: =0 -> 0 | AR29: =0 -> 0 | AS29: =0 -> 0 | AT29: =0 -> 0 | AU29: =0 -> 0 | AV29: =0 -> 0 | AW29: =0 -> 0 | AX29: =0 -> 0 | AY29: =0 -> 0 | AZ29: =0 -> 0 | BA29: =0 -> 0 | BB29: =0 -> 0 | BC29: =0 -> 0 | BD29: =0 -> 0 | BE29: =0 -> 0 | BF29: =0 -> 0 | BG29: =0 -> 0 | BH29: =0 -> 0 | BI29: =0 -> 0 | BJ29: =0 -> 0 | BK29: =0 -> 0 | BL29: =0 -> 0 | BM29: =0 -> 0 | BN29: =0 -> 0 | BO29: =0 -> 0
A30: ='Wksh 1 - Market Experience'!E16 -> 0 | B30: 2.6 | C30: Incurred Claims | D30: =D26-D27-D28-D29 -> 195404355.8 | E30: =E26-E27-E28-E29 -> 0 | F30: =F26-F27-F28-F29 -> 0 | G30: =G26-G27-G28-G29 -> 0 | H30: =H26-H27-H28-H29 -> 0 | I30: =I26-I27-I28-I29 -> 0 | J30: =J26-J27-J28-J29 -> 0 | K30: =K26-K27-K28-K29 -> 0 | L30: =L26-L27-L28-L29 -> 0 | M30: =M26-M27-M28-M29 -> 0 | N30: =N26-N27-N28-N29 -> 0 | O30: =O26-O27-O28-O29 -> 0 | P30: =P26-P27-P28-P29 -> 0 | Q30: =Q26-Q27-Q28-Q29 -> 0 | R30: =R26-R27-R28-R29 -> 0 | S30: =S26-S27-S28-S29 -> 0 | T30: =T26-T27-T28-T29 -> 0 | U30: =U26-U27-U28-U29 -> 0 | V30: =V26-V27-V28-V29 -> 0 | W30: =W26-W27-W28-W29 -> 0 | X30: =X26-X27-X28-X29 -> 0 | Y30: =Y26-Y27-Y28-Y29 -> 0 | Z30: =Z26-Z27-Z28-Z29 -> 0 | AA30: =AA26-AA27-AA28-AA29 -> 0 | AB30: =AB26-AB27-AB28-AB29 -> 0 | AC30: =AC26-AC27-AC28-AC29 -> 0 | AD30: =AD26-AD27-AD28-AD29 -> 0 | AE30: =AE26-AE27-AE28-AE29 -> 0 | AF30: =AF26-AF27-AF28-AF29 -> 0 | AG30: =AG26-AG27-AG28-AG29 -> 0 | AH30: =AH26-AH27-AH28-AH29 -> 0 | AI30: =AI26-AI27-AI28-AI29 -> 0 | AJ30: =AJ26-AJ27-AJ28-AJ29 -> 0 | AK30: =AK26-AK27-AK28-AK29 -> 0 | AL30: =AL26-AL27-AL28-AL29 -> 0 | AM30: =AM26-AM27-AM28-AM29 -> 0 | AN30: =AN26-AN27-AN28-AN29 -> 0 | AO30: =AO26-AO27-AO28-AO29 -> 0 | AP30: =AP26-AP27-AP28-AP29 -> 0 | AQ30: =AQ26-AQ27-AQ28-AQ29 -> 0 | AR30: =AR26-AR27-AR28-AR29 -> 0 | AS30: =AS26-AS27-AS28-AS29 -> 0 | AT30: =AT26-AT27-AT28-AT29 -> 0 | AU30: =AU26-AU27-AU28-AU29 -> 0 | AV30: =AV26-AV27-AV28-AV29 -> 0 | AW30: =AW26-AW27-AW28-AW29 -> 0 | AX30: =AX26-AX27-AX28-AX29 -> 0 | AY30: =AY26-AY27-AY28-AY29 -> 0 | AZ30: =AZ26-AZ27-AZ28-AZ29 -> 0 | BA30: =BA26-BA27-BA28-BA29 -> 0 | BB30: =BB26-BB27-BB28-BB29 -> 0 | BC30: =BC26-BC27-BC28-BC29 -> 0 | BD30: =BD26-BD27-BD28-BD29 -> 0 | BE30: =BE26-BE27-BE28-BE29 -> 0 | BF30: =BF26-BF27-BF28-BF29 -> 0 | BG30: =BG26-BG27-BG28-BG29 -> 0 | BH30: =BH26-BH27-BH28-BH29 -> 0 | BI30: =BI26-BI27-BI28-BI29 -> 0 | BJ30: =BJ26-BJ27-BJ28-BJ29 -> 0 | BK30: =BK26-BK27-BK28-BK29 -> 0 | BL30: =BL26-BL27-BL28-BL29 -> 0 | BM30: =BM26-BM27-BM28-BM29 -> 0 | BN30: =BN26-BN27-BN28-BN29 -> 0 | BO30: =BO26-BO27-BO28-BO29 -> 0
A31: ='Wksh 1 - Market Experience'!E17 -> 0 | B31: 2.7 | C31: Risk Adjustment Transfer Amount | D31: =SUM(E31:XFD31) -> -394293.23 | E31: =0 -> 0 | F31: =-159219.56 -> 0 | G31: =27407.87 -> 0 | H31: =5236.36 -> 0 | I31: =110690.12 -> 0 | J31: =-8163.82 -> 0 | K31: =-887030.34 -> 0 | L31: =-330152.07 -> 0 | M31: =-523259.43 -> 0 | N31: =-45086.43 -> 0 | O31: =-1095766.01 -> 0 | P31: =-727814.39 -> 0 | Q31: =-1749960.45 -> 0 | R31: =-1127740.02 -> 0 | S31: =-480501.28 -> 0 | T31: =1632.06 -> 0 | U31: =-1979668.12 -> 0 | V31: =-909032.43 -> 0 | W31: =-99506.1 -> 0 | X31: =-796916.1 -> 0 | Y31: =-4027947.72 -> 0 | Z31: =-1023374.44 -> 0 | AA31: =-387844.34 -> 0 | AB31: =-563629.79 -> 0 | AC31: =91829.34 -> 0 | AD31: =-1544209.66 -> 0 | AE31: =0 -> 0 | AF31: =0 -> 0 | AG31: =0 -> 0 | AH31: =0 -> 0 | AI31: =0 -> 0 | AJ31: =0 -> 0 | AK31: =0 -> 0 | AL31: =0 -> 0 | AM31: =0 -> 0 | AN31: =0 -> 0 | AO31: =0 -> 0 | AP31: =0 -> 0 | AQ31: =0 -> 0 | AR31: =0 -> 0 | AS31: =0 -> 0 | AT31: =-2462538.4 -> 0 | AU31: =-122717.42 -> 0 | AV31: =-208080.89 -> 0 | AW31: =593063.19 -> 0 | AX31: =4311447.9 -> 0 | AY31: =-98027.68 -> 0 | AZ31: =4929089.6 -> 0 | BA31: =3558501.71 -> 0 | BB31: =-1435399.98 -> 0 | BC31: =2036049.12 -> 0 | BD31: =1027438.37 -> 0 | BE31: =200285.52 -> 0 | BF31: =0 -> 0 | BG31: =0 -> 0 | BH31: =0 -> 0 | BI31: =0 -> 0 | BJ31: =0 -> 0 | BK31: =4601426.48 -> 0 | BL31: =508567.53 -> 0 | BM31: =-14343.97 -> 0 | BN31: =77032.97 -> 0 | BO31: =333939.47 -> 0
A32: ='Wksh 1 - Market Experience'!E18 -> 0 | B32: 2.8 | C32: Premium | D32: =SUM(E32:XFD32) -> 245326502.3 | E32: =38089534.14 -> 0 | F32: =634630.86 -> 0 | G32: =172476.3 -> 0 | H32: =36618.47 -> 0 | I32: =121526.49 -> 0 | J32: =655380.94 -> 0 | K32: =1925903.64 -> 0 | L32: =752057.76 -> 0 | M32: =1200233.33 -> 0 | N32: =97539.81 -> 0 | O32: =3909749.86 -> 0 | P32: =3093233.74 -> 0 | Q32: =6271618.25 -> 0 | R32: =3476602.24 -> 0 | S32: =2592448.55 -> 0 | T32: =330346.78 -> 0 | U32: =4906595.92 -> 0 | V32: =1786391.42 -> 0 | W32: =364314.64 -> 0 | X32: =1598804.1 -> 0 | Y32: =18664178.15 -> 0 | Z32: =2777910.46 -> 0 | AA32: =695839.55 -> 0 | AB32: =1816222.31 -> 0 | AC32: =87205.73 -> 0 | AD32: =19103074.41 -> 0 | AE32: =0 -> 0 | AF32: =0 -> 0 | AG32: =0 -> 0 | AH32: =0 -> 0 | AI32: =0 -> 0 | AJ32: =0 -> 0 | AK32: =0 -> 0 | AL32: =0 -> 0 | AM32: =0 -> 0 | AN32: =0 -> 0 | AO32: =0 -> 0 | AP32: =0 -> 0 | AQ32: =0 -> 0 | AR32: =0 -> 0 | AS32: =0 -> 0 | AT32: =15444400.03 -> 0 | AU32: =944161.49 -> 0 | AV32: =4933392.31 -> 0 | AW32: =5057252.08 -> 0 | AX32: =42903083.73 -> 0 | AY32: =5543445.46 -> 0 | AZ32: =24393883.03 -> 0 | BA32: =6778475.48 -> 0 | BB32: =6555109.44 -> 0 | BC32: =8356261.42 -> 0 | BD32: =2624564.13 -> 0 | BE32: =556897.61 -> 0 | BF32: =0 -> 0 | BG32: =0 -> 0 | BH32: =0 -> 0 | BI32: =0 -> 0 | BJ32: =0 -> 0 | BK32: =4272628.3 -> 0 | BL32: =1162213.91 -> 0 | BM32: =152180.28 -> 0 | BN32: =423251.59 -> 0 | BO32: =64864.18 -> 0
A33: ='Wksh 1 - Market Experience'!E19 -> 0 | B33: 2.9 | C33: Experience Period Member Months | D33: =SUM(E33:XFD33) -> 413794 | E33: =77880 -> 0 | F33: =3355 -> 0 | G33: =719 -> 0 | H33: =174 -> 0 | I33: =571 -> 0 | J33: =2986 -> 0 | K33: =4428 -> 0 | L33: =1405 -> 0 | M33: =1859 -> 0 | N33: =159 -> 0 | O33: =7181 -> 0 | P33: =5237 -> 0 | Q33: =13281 -> 0 | R33: =6397 -> 0 | S33: =3847 -> 0 | T33: =487 -> 0 | U33: =10471 -> 0 | V33: =2786 -> 0 | W33: =601 -> 0 | X33: =2928 -> 0 | Y33: =31341 -> 0 | Z33: =6866 -> 0 | AA33: =1526 -> 0 | AB33: =3383 -> 0 | AC33: =178 -> 0 | AD33: =30853 -> 0 | AE33: =0 -> 0 | AF33: =0 -> 0 | AG33: =0 -> 0 | AH33: =0 -> 0 | AI33: =0 -> 0 | AJ33: =0 -> 0 | AK33: =0 -> 0 | AL33: =0 -> 0 | AM33: =0 -> 0 | AN33: =0 -> 0 | AO33: =0 -> 0 | AP33: =0 -> 0 | AQ33: =0 -> 0 | AR33: =0 -> 0 | AS33: =0 -> 0 | AT33: =27355 -> 0 | AU33: =1284 -> 0 | AV33: =7636 -> 0 | AW33: =6572 -> 0 | AX33: =59312 -> 0 | AY33: =8736 -> 0 | AZ33: =35395 -> 0 | BA33: =9957 -> 0 | BB33: =10237 -> 0 | BC33: =14616 -> 0 | BD33: =3469 -> 0 | BE33: =849 -> 0 | BF33: =0 -> 0 | BG33: =0 -> 0 | BH33: =0 -> 0 | BI33: =0 -> 0 | BJ33: =0 -> 0 | BK33: =5029 -> 0 | BL33: =1748 -> 0 | BM33: =203 -> 0 | BN33: =430 -> 0 | BO33: =67 -> 0
B34: 2.10 | C34: Current Enrollment | D34: =SUM(E34:XFD34) -> 34418 | E34: =0 -> 0 | F34: =310 -> 0 | G34: =61 -> 0 | H34: =20 -> 0 | I34: =47 -> 0 | J34: =262 -> 0 | K34: =614 -> 0 | L34: =200 -> 0 | M34: =227 -> 0 | N34: =35 -> 0 | O34: =989 -> 0 | P34: =972 -> 0 | Q34: =993 -> 0 | R34: =440 -> 0 | S34: =272 -> 0 | T34: =29 -> 0 | U34: =842 -> 0 | V34: =230 -> 0 | W34: =44 -> 0 | X34: =216 -> 0 | Y34: =2350 -> 0 | Z34: =1154 -> 0 | AA34: =249 -> 0 | AB34: =411 -> 0 | AC34: =50 -> 0 | AD34: =2267 -> 0 | AE34: =829 -> 0 | AF34: =630 -> 0 | AG34: =183 -> 0 | AH34: =156 -> 0 | AI34: =15 -> 0 | AJ34: =0 -> 0 | AK34: =0 -> 0 | AL34: =0 -> 0 | AM34: =0 -> 0 | AN34: =0 -> 0 | AO34: =0 -> 0 | AP34: =0 -> 0 | AQ34: =0 -> 0 | AR34: =0 -> 0 | AS34: =0 -> 0 | AT34: =2263 -> 0 | AU34: =128 -> 0 | AV34: =812 -> 0 | AW34: =568 -> 0 | AX34: =5236 -> 0 | AY34: =928 -> 0 | AZ34: =2846 -> 0 | BA34: =797 -> 0 | BB34: =528 -> 0 | BC34: =885 -> 0 | BD34: =215 -> 0 | BE34: =61 -> 0 | BF34: =1550 -> 0 | BG34: =1052 -> 0 | BH34: =355 -> 0 | BI34: =307 -> 0 | BJ34: =77 -> 0 | BK34: =504 -> 0 | BL34: =145 -> 0 | BM34: =18 -> 0 | BN34: =36 -> 0 | BO34: =10 -> 0
B35: 2.11 | C35: Current Premium PMPM | D35: =SUMPRODUCT(E35:XFD35,E34:XFD34)/D34 -> 646.2095 | E35: =0 -> 0 | F35: =206.86 -> 0 | G35: =243.26 -> 0 | H35: =211.21 -> 0 | I35: =233.57 -> 0 | J35: =239.84 -> 0 | K35: =485.61 -> 0 | L35: =573.71 -> 0 | M35: =622.13 -> 0 | N35: =508.52 -> 0 | O35: =591.41 -> 0 | P35: =588.67 -> 0 | Q35: =504.44 -> 0 | R35: =590.93 -> 0 | S35: =691.93 -> 0 | T35: =584.69 -> 0 | U35: =511.9 -> 0 | V35: =618.83 -> 0 | W35: =624.05 -> 0 | X35: =579.28 -> 0 | Y35: =639.51 -> 0 | Z35: =446.6 -> 0 | AA35: =486.28 -> 0 | AB35: =545.57 -> 0 | AC35: =459.99 -> 0 | AD35: =664.81 -> 0 | AE35: =632.62 -> 0 | AF35: =458.21 -> 0 | AG35: =512.6 -> 0 | AH35: =596.75 -> 0 | AI35: =658.75 -> 0 | AJ35: =0 -> 0 | AK35: =0 -> 0 | AL35: =0 -> 0 | AM35: =0 -> 0 | AN35: =0 -> 0 | AO35: =0 -> 0 | AP35: =0 -> 0 | AQ35: =0 -> 0 | AR35: =0 -> 0 | AS35: =0 -> 0 | AT35: =609.6 -> 0 | AU35: =766.54 -> 0 | AV35: =692.12 -> 0 | AW35: =760.16 -> 0 | AX35: =770.61 -> 0 | AY35: =689.45 -> 0 | AZ35: =742.32 -> 0 | BA35: =750.56 -> 0 | BB35: =718.41 -> 0 | BC35: =628.38 -> 0 | BD35: =802.28 -> 0 | BE35: =771.13 -> 0 | BF35: =690.07 -> 0 | BG35: =548.48 -> 0 | BH35: =683.02 -> 0 | BI35: =707.14 -> 0 | BJ35: =739.3 -> 0 | BK35: =851.03 -> 0 | BL35: =719.31 -> 0 | BM35: =824.31 -> 0 | BN35: =844.94 -> 0 | BO35: =612.81 -> 0
B36: 2.12 | C36: Loss Ratio | D36: =D30/(D31+D32) -> 0.7977895455 | E36: =E30/(E31+E32) -> 0 | F36: =F30/(F31+F32) -> 0 | G36: =G30/(G31+G32) -> 0 | H36: =H30/(H31+H32) -> 0 | I36: =I30/(I31+I32) -> 0 | J36: =J30/(J31+J32) -> 0 | K36: =K30/(K31+K32) -> 0 | L36: =L30/(L31+L32) -> 0 | M36: =M30/(M31+M32) -> 0 | N36: =N30/(N31+N32) -> 0 | O36: =O30/(O31+O32) -> 0 | P36: =P30/(P31+P32) -> 0 | Q36: =Q30/(Q31+Q32) -> 0 | R36: =R30/(R31+R32) -> 0 | S36: =S30/(S31+S32) -> 0 | T36: =T30/(T31+T32) -> 0 | U36: =U30/(U31+U32) -> 0 | V36: =V30/(V31+V32) -> 0 | W36: =W30/(W31+W32) -> 0 | X36: =X30/(X31+X32) -> 0 | Y36: =Y30/(Y31+Y32) -> 0 | Z36: =Z30/(Z31+Z32) -> 0 | AA36: =AA30/(AA31+AA32) -> 0 | AB36: =AB30/(AB31+AB32) -> 0 | AC36: =AC30/(AC31+AC32) -> 0 | AD36: =AD30/(AD31+AD32) -> 0 | AE36: =AE30/(AE31+AE32) -> 0 | AF36: =AF30/(AF31+AF32) -> 0 | AG36: =AG30/(AG31+AG32) -> 0 | AH36: =AH30/(AH31+AH32) -> 0 | AI36: =AI30/(AI31+AI32) -> 0 | AJ36: =AJ30/(AJ31+AJ32) -> 0 | AK36: =AK30/(AK31+AK32) -> 0 | AL36: =AL30/(AL31+AL32) -> 0 | AM36: =AM30/(AM31+AM32) -> 0 | AN36: =AN30/(AN31+AN32) -> 0 | AO36: =AO30/(AO31+AO32) -> 0 | AP36: =AP30/(AP31+AP32) -> 0 | AQ36: =AQ30/(AQ31+AQ32) -> 0 | AR36: =AR30/(AR31+AR32) -> 0 | AS36: =AS30/(AS31+AS32) -> 0 | AT36: =AT30/(AT31+AT32) -> 0 | AU36: =AU30/(AU31+AU32) -> 0 | AV36: =AV30/(AV31+AV32) -> 0 | AW36: =AW30/(AW31+AW32) -> 0 | AX36: =AX30/(AX31+AX32) -> 0 | AY36: =AY30/(AY31+AY32) -> 0 | AZ36: =AZ30/(AZ31+AZ32) -> 0 | BA36: =BA30/(BA31+BA32) -> 0 | BB36: =BB30/(BB31+BB32) -> 0 | BC36: =BC30/(BC31+BC32) -> 0 | BD36: =BD30/(BD31+BD32) -> 0 | BE36: =BE30/(BE31+BE32) -> 0 | BF36: =BF30/(BF31+BF32) -> 0 | BG36: =BG30/(BG31+BG32) -> 0 | BH36: =BH30/(BH31+BH32) -> 0 | BI36: =BI30/(BI31+BI32) -> 0 | BJ36: =BJ30/(BJ31+BJ32) -> 0 | BK36: =BK30/(BK31+BK32) -> 0 | BL36: =BL30/(BL31+BL32) -> 0 | BM36: =BM30/(BM31+BM32) -> 0 | BN36: =BN30/(BN31+BN32) -> 0 | BO36: =BO30/(BO31+BO32) -> 0
C37: Per Member Per Month
B38: 2.13 | C38: Allowed Claims | D38: =D26/D33 -> 619.2976 | E38: =E26/E33 -> 0 | F38: =F26/F33 -> 0 | G38: =G26/G33 -> 0 | H38: =H26/H33 -> 0 | I38: =I26/I33 -> 0 | J38: =J26/J33 -> 0 | K38: =K26/K33 -> 0 | L38: =L26/L33 -> 0 | M38: =M26/M33 -> 0 | N38: =N26/N33 -> 0 | O38: =O26/O33 -> 0 | P38: =P26/P33 -> 0 | Q38: =Q26/Q33 -> 0 | R38: =R26/R33 -> 0 | S38: =S26/S33 -> 0 | T38: =T26/T33 -> 0 | U38: =U26/U33 -> 0 | V38: =V26/V33 -> 0 | W38: =W26/W33 -> 0 | X38: =X26/X33 -> 0 | Y38: =Y26/Y33 -> 0 | Z38: =Z26/Z33 -> 0 | AA38: =AA26/AA33 -> 0 | AB38: =AB26/AB33 -> 0 | AC38: =AC26/AC33 -> 0 | AD38: =AD26/AD33 -> 0 | AE38: =AE26/AE33 -> 0 | AF38: =AF26/AF33 -> 0 | AG38: =AG26/AG33 -> 0 | AH38: =AH26/AH33 -> 0 | AI38: =AI26/AI33 -> 0 | AJ38: =AJ26/AJ33 -> 0 | AK38: =AK26/AK33 -> 0 | AL38: =AL26/AL33 -> 0 | AM38: =AM26/AM33 -> 0 | AN38: =AN26/AN33 -> 0 | AO38: =AO26/AO33 -> 0 | AP38: =AP26/AP33 -> 0 | AQ38: =AQ26/AQ33 -> 0 | AR38: =AR26/AR33 -> 0 | AS38: =AS26/AS33 -> 0 | AT38: =AT26/AT33 -> 0 | AU38: =AU26/AU33 -> 0 | AV38: =AV26/AV33 -> 0 | AW38: =AW26/AW33 -> 0 | AX38: =AX26/AX33 -> 0 | AY38: =AY26/AY33 -> 0 | AZ38: =AZ26/AZ33 -> 0 | BA38: =BA26/BA33 -> 0 | BB38: =BB26/BB33 -> 0 | BC38: =BC26/BC33 -> 0 | BD38: =BD26/BD33 -> 0 | BE38: =BE26/BE33 -> 0 | BF38: =BF26/BF33 -> 0 | BG38: =BG26/BG33 -> 0 | BH38: =BH26/BH33 -> 0 | BI38: =BI26/BI33 -> 0 | BJ38: =BJ26/BJ33 -> 0 | BK38: =BK26/BK33 -> 0 | BL38: =BL26/BL33 -> 0 | BM38: =BM26/BM33 -> 0 | BN38: =BN26/BN33 -> 0 | BO38: =BO26/BO33 -> 0
B39: 2.14 | C39: Reinsurance | D39: =D27/D33 -> 0 | E39: =E27/E33 -> 0 | F39: =F27/F33 -> 0 | G39: =G27/G33 -> 0 | H39: =H27/H33 -> 0 | I39: =I27/I33 -> 0 | J39: =J27/J33 -> 0 | K39: =K27/K33 -> 0 | L39: =L27/L33 -> 0 | M39: =M27/M33 -> 0 | N39: =N27/N33 -> 0 | O39: =O27/O33 -> 0 | P39: =P27/P33 -> 0 | Q39: =Q27/Q33 -> 0 | R39: =R27/R33 -> 0 | S39: =S27/S33 -> 0 | T39: =T27/T33 -> 0 | U39: =U27/U33 -> 0 | V39: =V27/V33 -> 0 | W39: =W27/W33 -> 0 | X39: =X27/X33 -> 0 | Y39: =Y27/Y33 -> 0 | Z39: =Z27/Z33 -> 0 | AA39: =AA27/AA33 -> 0 | AB39: =AB27/AB33 -> 0 | AC39: =AC27/AC33 -> 0 | AD39: =AD27/AD33 -> 0 | AE39: =AE27/AE33 -> 0 | AF39: =AF27/AF33 -> 0 | AG39: =AG27/AG33 -> 0 | AH39: =AH27/AH33 -> 0 | AI39: =AI27/AI33 -> 0 | AJ39: =AJ27/AJ33 -> 0 | AK39: =AK27/AK33 -> 0 | AL39: =AL27/AL33 -> 0 | AM39: =AM27/AM33 -> 0 | AN39: =AN27/AN33 -> 0 | AO39: =AO27/AO33 -> 0 | AP39: =AP27/AP33 -> 0 | AQ39: =AQ27/AQ33 -> 0 | AR39: =AR27/AR33 -> 0 | AS39: =AS27/AS33 -> 0 | AT39: =AT27/AT33 -> 0 | AU39: =AU27/AU33 -> 0 | AV39: =AV27/AV33 -> 0 | AW39: =AW27/AW33 -> 0 | AX39: =AX27/AX33 -> 0 | AY39: =AY27/AY33 -> 0 | AZ39: =AZ27/AZ33 -> 0 | BA39: =BA27/BA33 -> 0 | BB39: =BB27/BB33 -> 0 | BC39: =BC27/BC33 -> 0 | BD39: =BD27/BD33 -> 0 | BE39: =BE27/BE33 -> 0 | BF39: =BF27/BF33 -> 0 | BG39: =BG27/BG33 -> 0 | BH39: =BH27/BH33 -> 0 | BI39: =BI27/BI33 -> 0 | BJ39: =BJ27/BJ33 -> 0 | BK39: =BK27/BK33 -> 0 | BL39: =BL27/BL33 -> 0 | BM39: =BM27/BM33 -> 0 | BN39: =BN27/BN33 -> 0 | BO39: =BO27/BO33 -> 0
B40: 2.15 | C40: Member Cost Sharing | D40: =D28/D33 -> 147.0715 | E40: =E28/E33 -> 0 | F40: =F28/F33 -> 0 | G40: =G28/G33 -> 0 | H40: =H28/H33 -> 0 | I40: =I28/I33 -> 0 | J40: =J28/J33 -> 0 | K40: =K28/K33 -> 0 | L40: =L28/L33 -> 0 | M40: =M28/M33 -> 0 | N40: =N28/N33 -> 0 | O40: =O28/O33 -> 0 | P40: =P28/P33 -> 0 | Q40: =Q28/Q33 -> 0 | R40: =R28/R33 -> 0 | S40: =S28/S33 -> 0 | T40: =T28/T33 -> 0 | U40: =U28/U33 -> 0 | V40: =V28/V33 -> 0 | W40: =W28/W33 -> 0 | X40: =X28/X33 -> 0 | Y40: =Y28/Y33 -> 0 | Z40: =Z28/Z33 -> 0 | AA40: =AA28/AA33 -> 0 | AB40: =AB28/AB33 -> 0 | AC40: =AC28/AC33 -> 0 | AD40: =AD28/AD33 -> 0 | AE40: =AE28/AE33 -> 0 | AF40: =AF28/AF33 -> 0 | AG40: =AG28/AG33 -> 0 | AH40: =AH28/AH33 -> 0 | AI40: =AI28/AI33 -> 0 | AJ40: =AJ28/AJ33 -> 0 | AK40: =AK28/AK33 -> 0 | AL40: =AL28/AL33 -> 0 | AM40: =AM28/AM33 -> 0 | AN40: =AN28/AN33 -> 0 | AO40: =AO28/AO33 -> 0 | AP40: =AP28/AP33 -> 0 | AQ40: =AQ28/AQ33 -> 0 | AR40: =AR28/AR33 -> 0 | AS40: =AS28/AS33 -> 0 | AT40: =AT28/AT33 -> 0 | AU40: =AU28/AU33 -> 0 | AV40: =AV28/AV33 -> 0 | AW40: =AW28/AW33 -> 0 | AX40: =AX28/AX33 -> 0 | AY40: =AY28/AY33 -> 0 | AZ40: =AZ28/AZ33 -> 0 | BA40: =BA28/BA33 -> 0 | BB40: =BB28/BB33 -> 0 | BC40: =BC28/BC33 -> 0 | BD40: =BD28/BD33 -> 0 | BE40: =BE28/BE33 -> 0 | BF40: =BF28/BF33 -> 0 | BG40: =BG28/BG33 -> 0 | BH40: =BH28/BH33 -> 0 | BI40: =BI28/BI33 -> 0 | BJ40: =BJ28/BJ33 -> 0 | BK40: =BK28/BK33 -> 0 | BL40: =BL28/BL33 -> 0 | BM40: =BM28/BM33 -> 0 | BN40: =BN28/BN33 -> 0 | BO40: =BO28/BO33 -> 0
B41: 2.16 | C41: Cost Sharing Reduction | D41: =D29/D33 -> 0 | E41: =E29/E33 -> 0 | F41: =F29/F33 -> 0 | G41: =G29/G33 -> 0 | H41: =H29/H33 -> 0 | I41: =I29/I33 -> 0 | J41: =J29/J33 -> 0 | K41: =K29/K33 -> 0 | L41: =L29/L33 -> 0 | M41: =M29/M33 -> 0 | N41: =N29/N33 -> 0 | O41: =O29/O33 -> 0 | P41: =P29/P33 -> 0 | Q41: =Q29/Q33 -> 0 | R41: =R29/R33 -> 0 | S41: =S29/S33 -> 0 | T41: =T29/T33 -> 0 | U41: =U29/U33 -> 0 | V41: =V29/V33 -> 0 | W41: =W29/W33 -> 0 | X41: =X29/X33 -> 0 | Y41: =Y29/Y33 -> 0 | Z41: =Z29/Z33 -> 0 | AA41: =AA29/AA33 -> 0 | AB41: =AB29/AB33 -> 0 | AC41: =AC29/AC33 -> 0 | AD41: =AD29/AD33 -> 0 | AE41: =AE29/AE33 -> 0 | AF41: =AF29/AF33 -> 0 | AG41: =AG29/AG33 -> 0 | AH41: =AH29/AH33 -> 0 | AI41: =AI29/AI33 -> 0 | AJ41: =AJ29/AJ33 -> 0 | AK41: =AK29/AK33 -> 0 | AL41: =AL29/AL33 -> 0 | AM41: =AM29/AM33 -> 0 | AN41: =AN29/AN33 -> 0 | AO41: =AO29/AO33 -> 0 | AP41: =AP29/AP33 -> 0 | AQ41: =AQ29/AQ33 -> 0 | AR41: =AR29/AR33 -> 0 | AS41: =AS29/AS33 -> 0 | AT41: =AT29/AT33 -> 0 | AU41: =AU29/AU33 -> 0 | AV41: =AV29/AV33 -> 0 | AW41: =AW29/AW33 -> 0 | AX41: =AX29/AX33 -> 0 | AY41: =AY29/AY33 -> 0 | AZ41: =AZ29/AZ33 -> 0 | BA41: =BA29/BA33 -> 0 | BB41: =BB29/BB33 -> 0 | BC41: =BC29/BC33 -> 0 | BD41: =BD29/BD33 -> 0 | BE41: =BE29/BE33 -> 0 | BF41: =BF29/BF33 -> 0 | BG41: =BG29/BG33 -> 0 | BH41: =BH29/BH33 -> 0 | BI41: =BI29/BI33 -> 0 | BJ41: =BJ29/BJ33 -> 0 | BK41: =BK29/BK33 -> 0 | BL41: =BL29/BL33 -> 0 | BM41: =BM29/BM33 -> 0 | BN41: =BN29/BN33 -> 0 | BO41: =BO29/BO33 -> 0
B42: 2.17 | C42: Incurred Claims | D42: =D30/D33 -> 472.2262 | E42: =E30/E33 -> 0 | F42: =F30/F33 -> 0 | G42: =G30/G33 -> 0 | H42: =H30/H33 -> 0 | I42: =I30/I33 -> 0 | J42: =J30/J33 -> 0 | K42: =K30/K33 -> 0 | L42: =L30/L33 -> 0 | M42: =M30/M33 -> 0 | N42: =N30/N33 -> 0 | O42: =O30/O33 -> 0 | P42: =P30/P33 -> 0 | Q42: =Q30/Q33 -> 0 | R42: =R30/R33 -> 0 | S42: =S30/S33 -> 0 | T42: =T30/T33 -> 0 | U42: =U30/U33 -> 0 | V42: =V30/V33 -> 0 | W42: =W30/W33 -> 0 | X42: =X30/X33 -> 0 | Y42: =Y30/Y33 -> 0 | Z42: =Z30/Z33 -> 0 | AA42: =AA30/AA33 -> 0 | AB42: =AB30/AB33 -> 0 | AC42: =AC30/AC33 -> 0 | AD42: =AD30/AD33 -> 0 | AE42: =AE30/AE33 -> 0 | AF42: =AF30/AF33 -> 0 | AG42: =AG30/AG33 -> 0 | AH42: =AH30/AH33 -> 0 | AI42: =AI30/AI33 -> 0 | AJ42: =AJ30/AJ33 -> 0 | AK42: =AK30/AK33 -> 0 | AL42: =AL30/AL33 -> 0 | AM42: =AM30/AM33 -> 0 | AN42: =AN30/AN33 -> 0 | AO42: =AO30/AO33 -> 0 | AP42: =AP30/AP33 -> 0 | AQ42: =AQ30/AQ33 -> 0 | AR42: =AR30/AR33 -> 0 | AS42: =AS30/AS33 -> 0 | AT42: =AT30/AT33 -> 0 | AU42: =AU30/AU33 -> 0 | AV42: =AV30/AV33 -> 0 | AW42: =AW30/AW33 -> 0 | AX42: =AX30/AX33 -> 0 | AY42: =AY30/AY33 -> 0 | AZ42: =AZ30/AZ33 -> 0 | BA42: =BA30/BA33 -> 0 | BB42: =BB30/BB33 -> 0 | BC42: =BC30/BC33 -> 0 | BD42: =BD30/BD33 -> 0 | BE42: =BE30/BE33 -> 0 | BF42: =BF30/BF33 -> 0 | BG42: =BG30/BG33 -> 0 | BH42: =BH30/BH33 -> 0 | BI42: =BI30/BI33 -> 0 | BJ42: =BJ30/BJ33 -> 0 | BK42: =BK30/BK33 -> 0 | BL42: =BL30/BL33 -> 0 | BM42: =BM30/BM33 -> 0 | BN42: =BN30/BN33 -> 0 | BO42: =BO30/BO33 -> 0
B43: 2.18 | C43: Risk Adjustment Transfer Amount | D43: =D31/D33 -> -0.9529 | E43: =E31/E33 -> 0 | F43: =F31/F33 -> 0 | G43: =G31/G33 -> 0 | H43: =H31/H33 -> 0 | I43: =I31/I33 -> 0 | J43: =J31/J33 -> 0 | K43: =K31/K33 -> 0 | L43: =L31/L33 -> 0 | M43: =M31/M33 -> 0 | N43: =N31/N33 -> 0 | O43: =O31/O33 -> 0 | P43: =P31/P33 -> 0 | Q43: =Q31/Q33 -> 0 | R43: =R31/R33 -> 0 | S43: =S31/S33 -> 0 | T43: =T31/T33 -> 0 | U43: =U31/U33 -> 0 | V43: =V31/V33 -> 0 | W43: =W31/W33 -> 0 | X43: =X31/X33 -> 0 | Y43: =Y31/Y33 -> 0 | Z43: =Z31/Z33 -> 0 | AA43: =AA31/AA33 -> 0 | AB43: =AB31/AB33 -> 0 | AC43: =AC31/AC33 -> 0 | AD43: =AD31/AD33 -> 0 | AE43: =AE31/AE33 -> 0 | AF43: =AF31/AF33 -> 0 | AG43: =AG31/AG33 -> 0 | AH43: =AH31/AH33 -> 0 | AI43: =AI31/AI33 -> 0 | AJ43: =AJ31/AJ33 -> 0 | AK43: =AK31/AK33 -> 0 | AL43: =AL31/AL33 -> 0 | AM43: =AM31/AM33 -> 0 | AN43: =AN31/AN33 -> 0 | AO43: =AO31/AO33 -> 0 | AP43: =AP31/AP33 -> 0 | AQ43: =AQ31/AQ33 -> 0 | AR43: =AR31/AR33 -> 0 | AS43: =AS31/AS33 -> 0 | AT43: =AT31/AT33 -> 0 | AU43: =AU31/AU33 -> 0 | AV43: =AV31/AV33 -> 0 | AW43: =AW31/AW33 -> 0 | AX43: =AX31/AX33 -> 0 | AY43: =AY31/AY33 -> 0 | AZ43: =AZ31/AZ33 -> 0 | BA43: =BA31/BA33 -> 0 | BB43: =BB31/BB33 -> 0 | BC43: =BC31/BC33 -> 0 | BD43: =BD31/BD33 -> 0 | BE43: =BE31/BE33 -> 0 | BF43: =BF31/BF33 -> 0 | BG43: =BG31/BG33 -> 0 | BH43: =BH31/BH33 -> 0 | BI43: =BI31/BI33 -> 0 | BJ43: =BJ31/BJ33 -> 0 | BK43: =BK31/BK33 -> 0 | BL43: =BL31/BL33 -> 0 | BM43: =BM31/BM33 -> 0 | BN43: =BN31/BN33 -> 0 | BO43: =BO31/BO33 -> 0
B44: 2.19 | C44: Premium | D44: =D32/D33 -> 592.8711 | E44: =E32/E33 -> 0 | F44: =F32/F33 -> 0 | G44: =G32/G33 -> 0 | H44: =H32/H33 -> 0 | I44: =I32/I33 -> 0 | J44: =J32/J33 -> 0 | K44: =K32/K33 -> 0 | L44: =L32/L33 -> 0 | M44: =M32/M33 -> 0 | N44: =N32/N33 -> 0 | O44: =O32/O33 -> 0 | P44: =P32/P33 -> 0 | Q44: =Q32/Q33 -> 0 | R44: =R32/R33 -> 0 | S44: =S32/S33 -> 0 | T44: =T32/T33 -> 0 | U44: =U32/U33 -> 0 | V44: =V32/V33 -> 0 | W44: =W32/W33 -> 0 | X44: =X32/X33 -> 0 | Y44: =Y32/Y33 -> 0 | Z44: =Z32/Z33 -> 0 | AA44: =AA32/AA33 -> 0 | AB44: =AB32/AB33 -> 0 | AC44: =AC32/AC33 -> 0 | AD44: =AD32/AD33 -> 0 | AE44: =AE32/AE33 -> 0 | AF44: =AF32/AF33 -> 0 | AG44: =AG32/AG33 -> 0 | AH44: =AH32/AH33 -> 0 | AI44: =AI32/AI33 -> 0 | AJ44: =AJ32/AJ33 -> 0 | AK44: =AK32/AK33 -> 0 | AL44: =AL32/AL33 -> 0 | AM44: =AM32/AM33 -> 0 | AN44: =AN32/AN33 -> 0 | AO44: =AO32/AO33 -> 0 | AP44: =AP32/AP33 -> 0 | AQ44: =AQ32/AQ33 -> 0 | AR44: =AR32/AR33 -> 0 | AS44: =AS32/AS33 -> 0 | AT44: =AT32/AT33 -> 0 | AU44: =AU32/AU33 -> 0 | AV44: =AV32/AV33 -> 0 | AW44: =AW32/AW33 -> 0 | AX44: =AX32/AX33 -> 0 | AY44: =AY32/AY33 -> 0 | AZ44: =AZ32/AZ33 -> 0 | BA44: =BA32/BA33 -> 0 | BB44: =BB32/BB33 -> 0 | BC44: =BC32/BC33 -> 0 | BD44: =BD32/BD33 -> 0 | BE44: =BE32/BE33 -> 0 | BF44: =BF32/BF33 -> 0 | BG44: =BG32/BG33 -> 0 | BH44: =BH32/BH33 -> 0 | BI44: =BI32/BI33 -> 0 | BJ44: =BJ32/BJ33 -> 0 | BK44: =BK32/BK33 -> 0 | BL44: =BL32/BL33 -> 0 | BM44: =BM32/BM33 -> 0 | BN44: =BN32/BN33 -> 0 | BO44: =BO32/BO33 -> 0
C46: Section III: Plan Adjustment Factors
B47: 3.1 | C47: Plan ID (Standard Component ID) | E47: =E13 -> 0 | F47: =F13 -> 0 | G47: =G13 -> 0 | H47: =H13 -> 0 | I47: =I13 -> 0 | J47: =J13 -> 0 | K47: =K13 -> 0 | L47: =L13 -> 0 | M47: =M13 -> 0 | N47: =N13 -> 0 | O47: =O13 -> 0 | P47: =P13 -> 0 | Q47: =Q13 -> 0 | R47: =R13 -> 0 | S47: =S13 -> 0 | T47: =T13 -> 0 | U47: =U13 -> 0 | V47: =V13 -> 0 | W47: =W13 -> 0 | X47: =X13 -> 0 | Y47: =Y13 -> 0 | Z47: =Z13 -> 0 | AA47: =AA13 -> 0 | AB47: =AB13 -> 0 | AC47: =AC13 -> 0 | AD47: =AD13 -> 0 | AE47: =AE13 -> 0 | AF47: =AF13 -> 0 | AG47: =AG13 -> 0 | AH47: =AH13 -> 0 | AI47: =AI13 -> 0 | AJ47: =AJ13 -> 0 | AK47: =AK13 -> 0 | AL47: =AL13 -> 0 | AM47: =AM13 -> 0 | AN47: =AN13 -> 0 | AO47: =AO13 -> 0 | AP47: =AP13 -> 0 | AQ47: =AQ13 -> 0 | AR47: =AR13 -> 0 | AS47: =AS13 -> 0 | AT47: =AT13 -> 0 | AU47: =AU13 -> 0 | AV47: =AV13 -> 0 | AW47: =AW13 -> 0 | AX47: =AX13 -> 0 | AY47: =AY13 -> 0 | AZ47: =AZ13 -> 0 | BA47: =BA13 -> 0 | BB47: =BB13 -> 0 | BC47: =BC13 -> 0 | BD47: =BD13 -> 0 | BE47: =BE13 -> 0 | BF47: =BF13 -> 0 | BG47: =BG13 -> 0 | BH47: =BH13 -> 0 | BI47: =BI13 -> 0 | BJ47: =BJ13 -> 0 | BK47: =BK13 -> 0 | BL47: =BL13 -> 0 | BM47: =BM13 -> 0 | BN47: =BN13 -> 0 | BO47: =BO13 -> 0
B48: 3.2 | C48: Market Adjusted Index Rate | E48: ='Wksh 1 - Market Experience'!F46 -> 0
B49: 3.3 | C49: AV and Cost Sharing Design of Plan | E49: 0 | F49: 0.6873 | G49: 0.6873 | H49: 0.6873 | I49: 0.6873 | J49: 0.6873 | K49: 0.7329 | L49: 0.7329 | M49: 0.7329 | N49: 0.7329 | O49: 0.691 | P49: 0.7329 | Q49: 0.7516 | R49: 0.7516 | S49: 0.7516 | T49: 0.7516 | U49: 0.7341 | V49: 0.7341 | W49: 0.7341 | X49: 0.7341 | Y49: 0.7336 | Z49: 0.691 | AA49: 0.691 | AB49: 0.691 | AC49: 0.691 | AD49: 0.7558 | AE49: 0.7393 | AF49: 0.7393 | AG49: 0.7393 | AH49: 0.7393 | AI49: 0.7393 | AJ49: 0.7171 | AK49: 0.7171 | AL49: 0.7171 | AM49: 0.7171 | AN49: 0.7171 | AO49: 0.7263 | AP49: 0.7263 | AQ49: 0.7263 | AR49: 0.7263 | AS49: 0.7263 | AT49: 0.7921 | AU49: 0.7921 | AV49: 0.7921 | AW49: 0.7921 | AX49: 0.7813 | AY49: 0.8333 | AZ49: 0.8272 | BA49: 0.838 | BB49: 0.831 | BC49: 0.831 | BD49: 0.831 | BE49: 0.831 | BF49: 0.8277 | BG49: 0.8277 | BH49: 0.8277 | BI49: 0.8277 | BJ49: 0.8277 | BK49: 1.0397 | BL49: 1.0397 | BM49: 1.0397 | BN49: 1.0397 | BO49: 1.0397
B50: 3.4 | C50: Provider Network Adjustment | E50: 0 | F50: 0.9038 | G50: 0.9139 | H50: 0.9099 | I50: 0.8842 | J50: 1.074 | K50: 0.9038 | L50: 0.8842 | M50: 0.9139 | N50: 0.9099 | O50: 1.074 | P50: 1.074 | Q50: 0.9038 | R50: 0.8842 | S50: 0.9139 | T50: 0.9099 | U50: 0.9038 | V50: 0.9139 | W50: 0.9099 | X50: 0.8842 | Y50: 1.074 | Z50: 0.9038 | AA50: 0.8842 | AB50: 0.9139 | AC50: 0.9099 | AD50: 1.074 | AE50: 1.074 | AF50: 0.9038 | AG50: 0.8842 | AH50: 0.9139 | AI50: 0.9099 | AJ50: 1.074 | AK50: 0.9038 | AL50: 0.8842 | AM50: 0.9139 | AN50: 0.9099 | AO50: 0.9038 | AP50: 0.8842 | AQ50: 0.9139 | AR50: 0.9099 | AS50: 1.074 | AT50: 0.9038 | AU50: 0.9099 | AV50: 0.8842 | AW50: 0.9139 | AX50: 1.074 | AY50: 1.074 | AZ50: 1.074 | BA50: 1.074 | BB50: 0.8842 | BC50: 0.9038 | BD50: 0.9139 | BE50: 0.9099 | BF50: 1.074 | BG50: 0.9038 | BH50: 0.8842 | BI50: 0.9139 | BJ50: 0.9099 | BK50: 1.074 | BL50: 0.9038 | BM50: 0.8842 | BN50: 0.9139 | BO50: 0.9099
B51: 3.5 | C51: Benefits in Addition to EHB | E51: 0 | F51: 1 | G51: 1 | H51: 1 | I51: 1 | J51: 1 | K51: 1 | L51: 1 | M51: 1 | N51: 1 | O51: 1 | P51: 1 | Q51: 1 | R51: 1 | S51: 1 | T51: 1 | U51: 1 | V51: 1 | W51: 1 | X51: 1 | Y51: 1 | Z51: 1 | AA51: 1 | AB51: 1 | AC51: 1 | AD51: 1 | AE51: 1.0074 | AF51: 1.0092 | AG51: 1.0081 | AH51: 1.0078 | AI51: 1.0081 | AJ51: 1 | AK51: 1 | AL51: 1 | AM51: 1 | AN51: 1 | AO51: 1 | AP51: 1 | AQ51: 1 | AR51: 1 | AS51: 1 | AT51: 1 | AU51: 1 | AV51: 1 | AW51: 1 | AX51: 1 | AY51: 1 | AZ51: 1 | BA51: 1 | BB51: 1 | BC51: 1 | BD51: 1 | BE51: 1 | BF51: 1.0065 | BG51: 1.0082 | BH51: 1.0073 | BI51: 1.0069 | BJ51: 1.0072 | BK51: 1 | BL51: 1 | BM51: 1 | BN51: 1 | BO51: 1
C52: Administrative Costs
B53: 3.6 | C53: Administrative Expense | E53: 0 | F53: 0.078 | G53: 0.078 | H53: 0.078 | I53: 0.078 | J53: 0.078 | K53: 0.078 | L53: 0.078 | M53: 0.078 | N53: 0.078 | O53: 0.078 | P53: 0.078 | Q53: 0.078 | R53: 0.078 | S53: 0.078 | T53: 0.078 | U53: 0.078 | V53: 0.078 | W53: 0.078 | X53: 0.078 | Y53: 0.078 | Z53: 0.078 | AA53: 0.078 | AB53: 0.078 | AC53: 0.078 | AD53: 0.078 | AE53: 0.077 | AF53: 0.0763 | AG53: 0.0768 | AH53: 0.0769 | AI53: 0.0768 | AJ53: 0.078 | AK53: 0.078 | AL53: 0.078 | AM53: 0.078 | AN53: 0.078 | AO53: 0.078 | AP53: 0.078 | AQ53: 0.078 | AR53: 0.078 | AS53: 0.078 | AT53: 0.078 | AU53: 0.078 | AV53: 0.078 | AW53: 0.078 | AX53: 0.078 | AY53: 0.078 | AZ53: 0.078 | BA53: 0.078 | BB53: 0.078 | BC53: 0.078 | BD53: 0.078 | BE53: 0.078 | BF53: 0.0772 | BG53: 0.0765 | BH53: 0.0769 | BI53: 0.077 | BJ53: 0.0769 | BK53: 0.078 | BL53: 0.078 | BM53: 0.078 | BN53: 0.078 | BO53: 0.078
B54: 3.7 | C54: Taxes and Fees | E54: 0 | F54: 0.0296 | G54: 0.0296 | H54: 0.0296 | I54: 0.0296 | J54: 0.0296 | K54: 0.0296 | L54: 0.0296 | M54: 0.0296 | N54: 0.0296 | O54: 0.0296 | P54: 0.0296 | Q54: 0.0296 | R54: 0.0296 | S54: 0.0296 | T54: 0.0296 | U54: 0.0296 | V54: 0.0296 | W54: 0.0296 | X54: 0.0296 | Y54: 0.0296 | Z54: 0.0296 | AA54: 0.0296 | AB54: 0.0296 | AC54: 0.0296 | AD54: 0.0296 | AE54: 0.0292 | AF54: 0.0289 | AG54: 0.0291 | AH54: 0.0292 | AI54: 0.0291 | AJ54: 0.0296 | AK54: 0.0296 | AL54: 0.0296 | AM54: 0.0296 | AN54: 0.0296 | AO54: 0.0296 | AP54: 0.0296 | AQ54: 0.0296 | AR54: 0.0296 | AS54: 0.0296 | AT54: 0.0296 | AU54: 0.0296 | AV54: 0.0296 | AW54: 0.0296 | AX54: 0.0296 | AY54: 0.0296 | AZ54: 0.0296 | BA54: 0.0296 | BB54: 0.0296 | BC54: 0.0296 | BD54: 0.0296 | BE54: 0.0296 | BF54: 0.0293 | BG54: 0.029 | BH54: 0.0292 | BI54: 0.0292 | BJ54: 0.0292 | BK54: 0.0296 | BL54: 0.0296 | BM54: 0.0296 | BN54: 0.0296 | BO54: 0.0296
B55: 3.8 | C55: Profit & Risk Load | E55: 0 | F55: 0.0511 | G55: 0.0511 | H55: 0.0511 | I55: 0.0511 | J55: 0.0511 | K55: 0.0511 | L55: 0.0511 | M55: 0.0511 | N55: 0.0511 | O55: 0.0511 | P55: 0.0511 | Q55: 0.0511 | R55: 0.0511 | S55: 0.0511 | T55: 0.0511 | U55: 0.0511 | V55: 0.0511 | W55: 0.0511 | X55: 0.0511 | Y55: 0.0511 | Z55: 0.0511 | AA55: 0.0511 | AB55: 0.0511 | AC55: 0.0511 | AD55: 0.0511 | AE55: 0.0505 | AF55: 0.05 | AG55: 0.0503 | AH55: 0.0504 | AI55: 0.0503 | AJ55: 0.0511 | AK55: 0.0511 | AL55: 0.0511 | AM55: 0.0511 | AN55: 0.0511 | AO55: 0.0511 | AP55: 0.0511 | AQ55: 0.0511 | AR55: 0.0511 | AS55: 0.0511 | AT55: 0.0511 | AU55: 0.0511 | AV55: 0.0511 | AW55: 0.0511 | AX55: 0.0511 | AY55: 0.0511 | AZ55: 0.0511 | BA55: 0.0511 | BB55: 0.0511 | BC55: 0.0511 | BD55: 0.0511 | BE55: 0.0511 | BF55: 0.0506 | BG55: 0.0501 | BH55: 0.0504 | BI55: 0.0505 | BJ55: 0.0504 | BK55: 0.0511 | BL55: 0.0511 | BM55: 0.0511 | BN55: 0.0511 | BO55: 0.0511
B56: 3.9 | C56: Catastrophic Adjustment | E56: 0 | F56: 0.797 | G56: 0.797 | H56: 0.797 | I56: 0.797 | J56: 0.797 | K56: 1 | L56: 1 | M56: 1 | N56: 1 | O56: 1 | P56: 1 | Q56: 1 | R56: 1 | S56: 1 | T56: 1 | U56: 1 | V56: 1 | W56: 1 | X56: 1 | Y56: 1 | Z56: 1 | AA56: 1 | AB56: 1 | AC56: 1 | AD56: 1 | AE56: 1 | AF56: 1 | AG56: 1 | AH56: 1 | AI56: 1 | AJ56: 1 | AK56: 1 | AL56: 1 | AM56: 1 | AN56: 1 | AO56: 1 | AP56: 1 | AQ56: 1 | AR56: 1 | AS56: 1 | AT56: 1 | AU56: 1 | AV56: 1 | AW56: 1 | AX56: 1 | AY56: 1 | AZ56: 1 | BA56: 1 | BB56: 1 | BC56: 1 | BD56: 1 | BE56: 1 | BF56: 1 | BG56: 1 | BH56: 1 | BI56: 1 | BJ56: 1 | BK56: 1 | BL56: 1 | BM56: 1 | BN56: 1 | BO56: 1
B57: 3.10 | C57: Plan Adjusted Index Rate | E57: =($E$48*PRODUCT(E49:E51)*E56)/(1-SUM(E53:E55)) -> 0 | F57: =($E$48*PRODUCT(F49:F51)*F56)/(1-SUM(F53:F55)) -> 0 | G57: =($E$48*PRODUCT(G49:G51)*G56)/(1-SUM(G53:G55)) -> 0 | H57: =($E$48*PRODUCT(H49:H51)*H56)/(1-SUM(H53:H55)) -> 0 | I57: =($E$48*PRODUCT(I49:I51)*I56)/(1-SUM(I53:I55)) -> 0 | J57: =($E$48*PRODUCT(J49:J51)*J56)/(1-SUM(J53:J55)) -> 0 | K57: =($E$48*PRODUCT(K49:K51)*K56)/(1-SUM(K53:K55)) -> 0 | L57: =($E$48*PRODUCT(L49:L51)*L56)/(1-SUM(L53:L55)) -> 0 | M57: =($E$48*PRODUCT(M49:M51)*M56)/(1-SUM(M53:M55)) -> 0 | N57: =($E$48*PRODUCT(N49:N51)*N56)/(1-SUM(N53:N55)) -> 0 | O57: =($E$48*PRODUCT(O49:O51)*O56)/(1-SUM(O53:O55)) -> 0 | P57: =($E$48*PRODUCT(P49:P51)*P56)/(1-SUM(P53:P55)) -> 0 | Q57: =($E$48*PRODUCT(Q49:Q51)*Q56)/(1-SUM(Q53:Q55)) -> 0 | R57: =($E$48*PRODUCT(R49:R51)*R56)/(1-SUM(R53:R55)) -> 0 | S57: =($E$48*PRODUCT(S49:S51)*S56)/(1-SUM(S53:S55)) -> 0 | T57: =($E$48*PRODUCT(T49:T51)*T56)/(1-SUM(T53:T55)) -> 0 | U57: =($E$48*PRODUCT(U49:U51)*U56)/(1-SUM(U53:U55)) -> 0 | V57: =($E$48*PRODUCT(V49:V51)*V56)/(1-SUM(V53:V55)) -> 0 | W57: =($E$48*PRODUCT(W49:W51)*W56)/(1-SUM(W53:W55)) -> 0 | X57: =($E$48*PRODUCT(X49:X51)*X56)/(1-SUM(X53:X55)) -> 0 | Y57: =($E$48*PRODUCT(Y49:Y51)*Y56)/(1-SUM(Y53:Y55)) -> 0 | Z57: =($E$48*PRODUCT(Z49:Z51)*Z56)/(1-SUM(Z53:Z55)) -> 0 | AA57: =($E$48*PRODUCT(AA49:AA51)*AA56)/(1-SUM(AA53:AA55)) -> 0 | AB57: =($E$48*PRODUCT(AB49:AB51)*AB56)/(1-SUM(AB53:AB55)) -> 0 | AC57: =($E$48*PRODUCT(AC49:AC51)*AC56)/(1-SUM(AC53:AC55)) -> 0 | AD57: =($E$48*PRODUCT(AD49:AD51)*AD56)/(1-SUM(AD53:AD55)) -> 0 | AE57: =($E$48*PRODUCT(AE49:AE51)*AE56)/(1-SUM(AE53:AE55)) -> 0 | AF57: =($E$48*PRODUCT(AF49:AF51)*AF56)/(1-SUM(AF53:AF55)) -> 0 | AG57: =($E$48*PRODUCT(AG49:AG51)*AG56)/(1-SUM(AG53:AG55)) -> 0 | AH57: =($E$48*PRODUCT(AH49:AH51)*AH56)/(1-SUM(AH53:AH55)) -> 0 | AI57: =($E$48*PRODUCT(AI49:AI51)*AI56)/(1-SUM(AI53:AI55)) -> 0 | AJ57: =($E$48*PRODUCT(AJ49:AJ51)*AJ56)/(1-SUM(AJ53:AJ55)) -> 0 | AK57: =($E$48*PRODUCT(AK49:AK51)*AK56)/(1-SUM(AK53:AK55)) -> 0 | AL57: =($E$48*PRODUCT(AL49:AL51)*AL56)/(1-SUM(AL53:AL55)) -> 0 | AM57: =($E$48*PRODUCT(AM49:AM51)*AM56)/(1-SUM(AM53:AM55)) -> 0 | AN57: =($E$48*PRODUCT(AN49:AN51)*AN56)/(1-SUM(AN53:AN55)) -> 0 | AO57: =($E$48*PRODUCT(AO49:AO51)*AO56)/(1-SUM(AO53:AO55)) -> 0 | AP57: =($E$48*PRODUCT(AP49:AP51)*AP56)/(1-SUM(AP53:AP55)) -> 0 | AQ57: =($E$48*PRODUCT(AQ49:AQ51)*AQ56)/(1-SUM(AQ53:AQ55)) -> 0 | AR57: =($E$48*PRODUCT(AR49:AR51)*AR56)/(1-SUM(AR53:AR55)) -> 0 | AS57: =($E$48*PRODUCT(AS49:AS51)*AS56)/(1-SUM(AS53:AS55)) -> 0 | AT57: =($E$48*PRODUCT(AT49:AT51)*AT56)/(1-SUM(AT53:AT55)) -> 0 | AU57: =($E$48*PRODUCT(AU49:AU51)*AU56)/(1-SUM(AU53:AU55)) -> 0 | AV57: =($E$48*PRODUCT(AV49:AV51)*AV56)/(1-SUM(AV53:AV55)) -> 0 | AW57: =($E$48*PRODUCT(AW49:AW51)*AW56)/(1-SUM(AW53:AW55)) -> 0 | AX57: =($E$48*PRODUCT(AX49:AX51)*AX56)/(1-SUM(AX53:AX55)) -> 0 | AY57: =($E$48*PRODUCT(AY49:AY51)*AY56)/(1-SUM(AY53:AY55)) -> 0 | AZ57: =($E$48*PRODUCT(AZ49:AZ51)*AZ56)/(1-SUM(AZ53:AZ55)) -> 0 | BA57: =($E$48*PRODUCT(BA49:BA51)*BA56)/(1-SUM(BA53:BA55)) -> 0 | BB57: =($E$48*PRODUCT(BB49:BB51)*BB56)/(1-SUM(BB53:BB55)) -> 0 | BC57: =($E$48*PRODUCT(BC49:BC51)*BC56)/(1-SUM(BC53:BC55)) -> 0 | BD57: =($E$48*PRODUCT(BD49:BD51)*BD56)/(1-SUM(BD53:BD55)) -> 0 | BE57: =($E$48*PRODUCT(BE49:BE51)*BE56)/(1-SUM(BE53:BE55)) -> 0 | BF57: =($E$48*PRODUCT(BF49:BF51)*BF56)/(1-SUM(BF53:BF55)) -> 0 | BG57: =($E$48*PRODUCT(BG49:BG51)*BG56)/(1-SUM(BG53:BG55)) -> 0 | BH57: =($E$48*PRODUCT(BH49:BH51)*BH56)/(1-SUM(BH53:BH55)) -> 0 | BI57: =($E$48*PRODUCT(BI49:BI51)*BI56)/(1-SUM(BI53:BI55)) -> 0 | BJ57: =($E$48*PRODUCT(BJ49:BJ51)*BJ56)/(1-SUM(BJ53:BJ55)) -> 0 | BK57: =($E$48*PRODUCT(BK49:BK51)*BK56)/(1-SUM(BK53:BK55)) -> 0 | BL57: =($E$48*PRODUCT(BL49:BL51)*BL56)/(1-SUM(BL53:BL55)) -> 0 | BM57: =($E$48*PRODUCT(BM49:BM51)*BM56)/(1-SUM(BM53:BM55)) -> 0 | BN57: =($E$48*PRODUCT(BN49:BN51)*BN56)/(1-SUM(BN53:BN55)) -> 0 | BO57: =($E$48*PRODUCT(BO49:BO51)*BO56)/(1-SUM(BO53:BO55)) -> 0
B59: 3.11 | C59: Age Calibration Factor | D59: 0.5647484046 | E59: =IF(D59<>"", D59, "") -> 0
B60: 3.12 | C60: Geographic Calibration Factor | D60: 1.00070049 | E60: =IF(D60<>"", D60, "") -> 0
B61: 3.13 | C61: Tobacco Calibration Factor | D61: 0.9918666931 | E61: =IF(D61<>"", D61, "") -> 0
B62: 3.14 | C62: Calibrated Plan Adjusted Index Rate | E62: =E57*(PRODUCT($E$59:$E$61)) -> 0 | F62: =F57*(PRODUCT($E$59:$E$61)) -> 0 | G62: =G57*(PRODUCT($E$59:$E$61)) -> 0 | H62: =H57*(PRODUCT($E$59:$E$61)) -> 0 | I62: =I57*(PRODUCT($E$59:$E$61)) -> 0 | J62: =J57*(PRODUCT($E$59:$E$61)) -> 0 | K62: =K57*(PRODUCT($E$59:$E$61)) -> 0 | L62: =L57*(PRODUCT($E$59:$E$61)) -> 0 | M62: =M57*(PRODUCT($E$59:$E$61)) -> 0 | N62: =N57*(PRODUCT($E$59:$E$61)) -> 0 | O62: =O57*(PRODUCT($E$59:$E$61)) -> 0 | P62: =P57*(PRODUCT($E$59:$E$61)) -> 0 | Q62: =Q57*(PRODUCT($E$59:$E$61)) -> 0 | R62: =R57*(PRODUCT($E$59:$E$61)) -> 0 | S62: =S57*(PRODUCT($E$59:$E$61)) -> 0 | T62: =T57*(PRODUCT($E$59:$E$61)) -> 0 | U62: =U57*(PRODUCT($E$59:$E$61)) -> 0 | V62: =V57*(PRODUCT($E$59:$E$61)) -> 0 | W62: =W57*(PRODUCT($E$59:$E$61)) -> 0 | X62: =X57*(PRODUCT($E$59:$E$61)) -> 0 | Y62: =Y57*(PRODUCT($E$59:$E$61)) -> 0 | Z62: =Z57*(PRODUCT($E$59:$E$61)) -> 0 | AA62: =AA57*(PRODUCT($E$59:$E$61)) -> 0 | AB62: =AB57*(PRODUCT($E$59:$E$61)) -> 0 | AC62: =AC57*(PRODUCT($E$59:$E$61)) -> 0 | AD62: =AD57*(PRODUCT($E$59:$E$61)) -> 0 | AE62: =AE57*(PRODUCT($E$59:$E$61)) -> 0 | AF62: =AF57*(PRODUCT($E$59:$E$61)) -> 0 | AG62: =AG57*(PRODUCT($E$59:$E$61)) -> 0 | AH62: =AH57*(PRODUCT($E$59:$E$61)) -> 0 | AI62: =AI57*(PRODUCT($E$59:$E$61)) -> 0 | AJ62: =AJ57*(PRODUCT($E$59:$E$61)) -> 0 | AK62: =AK57*(PRODUCT($E$59:$E$61)) -> 0 | AL62: =AL57*(PRODUCT($E$59:$E$61)) -> 0 | AM62: =AM57*(PRODUCT($E$59:$E$61)) -> 0 | AN62: =AN57*(PRODUCT($E$59:$E$61)) -> 0 | AO62: =AO57*(PRODUCT($E$59:$E$61)) -> 0 | AP62: =AP57*(PRODUCT($E$59:$E$61)) -> 0 | AQ62: =AQ57*(PRODUCT($E$59:$E$61)) -> 0 | AR62: =AR57*(PRODUCT($E$59:$E$61)) -> 0 | AS62: =AS57*(PRODUCT($E$59:$E$61)) -> 0 | AT62: =AT57*(PRODUCT($E$59:$E$61)) -> 0 | AU62: =AU57*(PRODUCT($E$59:$E$61)) -> 0 | AV62: =AV57*(PRODUCT($E$59:$E$61)) -> 0 | AW62: =AW57*(PRODUCT($E$59:$E$61)) -> 0 | AX62: =AX57*(PRODUCT($E$59:$E$61)) -> 0 | AY62: =AY57*(PRODUCT($E$59:$E$61)) -> 0 | AZ62: =AZ57*(PRODUCT($E$59:$E$61)) -> 0 | BA62: =BA57*(PRODUCT($E$59:$E$61)) -> 0 | BB62: =BB57*(PRODUCT($E$59:$E$61)) -> 0 | BC62: =BC57*(PRODUCT($E$59:$E$61)) -> 0 | BD62: =BD57*(PRODUCT($E$59:$E$61)) -> 0 | BE62: =BE57*(PRODUCT($E$59:$E$61)) -> 0 | BF62: =BF57*(PRODUCT($E$59:$E$61)) -> 0 | BG62: =BG57*(PRODUCT($E$59:$E$61)) -> 0 | BH62: =BH57*(PRODUCT($E$59:$E$61)) -> 0 | BI62: =BI57*(PRODUCT($E$59:$E$61)) -> 0 | BJ62: =BJ57*(PRODUCT($E$59:$E$61)) -> 0 | BK62: =BK57*(PRODUCT($E$59:$E$61)) -> 0 | BL62: =BL57*(PRODUCT($E$59:$E$61)) -> 0 | BM62: =BM57*(PRODUCT($E$59:$E$61)) -> 0 | BN62: =BN57*(PRODUCT($E$59:$E$61)) -> 0 | BO62: =BO57*(PRODUCT($E$59:$E$61)) -> 0
C64: Section IV: Projected Plan Level Information
B65: 4.1 | C65: Plan ID (Standard Component ID) | D65: Total | E65: =E13 -> 0 | F65: =F13 -> 0 | G65: =G13 -> 0 | H65: =H13 -> 0 | I65: =I13 -> 0 | J65: =J13 -> 0 | K65: =K13 -> 0 | L65: =L13 -> 0 | M65: =M13 -> 0 | N65: =N13 -> 0 | O65: =O13 -> 0 | P65: =P13 -> 0 | Q65: =Q13 -> 0 | R65: =R13 -> 0 | S65: =S13 -> 0 | T65: =T13 -> 0 | U65: =U13 -> 0 | V65: =V13 -> 0 | W65: =W13 -> 0 | X65: =X13 -> 0 | Y65: =Y13 -> 0 | Z65: =Z13 -> 0 | AA65: =AA13 -> 0 | AB65: =AB13 -> 0 | AC65: =AC13 -> 0 | AD65: =AD13 -> 0 | AE65: =AE13 -> 0 | AF65: =AF13 -> 0 | AG65: =AG13 -> 0 | AH65: =AH13 -> 0 | AI65: =AI13 -> 0 | AJ65: =AJ13 -> 0 | AK65: =AK13 -> 0 | AL65: =AL13 -> 0 | AM65: =AM13 -> 0 | AN65: =AN13 -> 0 | AO65: =AO13 -> 0 | AP65: =AP13 -> 0 | AQ65: =AQ13 -> 0 | AR65: =AR13 -> 0 | AS65: =AS13 -> 0 | AT65: =AT13 -> 0 | AU65: =AU13 -> 0 | AV65: =AV13 -> 0 | AW65: =AW13 -> 0 | AX65: =AX13 -> 0 | AY65: =AY13 -> 0 | AZ65: =AZ13 -> 0 | BA65: =BA13 -> 0 | BB65: =BB13 -> 0 | BC65: =BC13 -> 0 | BD65: =BD13 -> 0 | BE65: =BE13 -> 0 | BF65: =BF13 -> 0 | BG65: =BG13 -> 0 | BH65: =BH13 -> 0 | BI65: =BI13 -> 0 | BJ65: =BJ13 -> 0 | BK65: =BK13 -> 0 | BL65: =BL13 -> 0 | BM65: =BM13 -> 0 | BN65: =BN13 -> 0 | BO65: =BO13 -> 0
B66: 4.2 | C66: Allowed Claims | D66: =SUM(E66:XFD66) -> 316038615.6 | E66: =0 -> 0 | F66: =1896914.14 -> 0 | G66: =415783.75 -> 0 | H66: =155888.67 -> 0 | I66: =346629.72 -> 0 | J66: =2130383.6 -> 0 | K66: =5077101.72 -> 0 | L66: =1791510.75 -> 0 | M66: =2103868.11 -> 0 | N66: =322055.31 -> 0 | O66: =9697273.69 -> 0 | P66: =9583895.36 -> 0 | Q66: =8073215.62 -> 0 | R66: =3989580.41 -> 0 | S66: =2550275.97 -> 0 | T66: =305833.16 -> 0 | U66: =7077783.57 -> 0 | V66: =2149433.31 -> 0 | W66: =413882.31 -> 0 | X66: =2006656.93 -> 0 | Y66: =23635015.36 -> 0 | Z66: =9109879.43 -> 0 | AA66: =2166768 -> 0 | AB66: =3810784.69 -> 0 | AC66: =517360.8 -> 0 | AD66: =22859576.03 -> 0 | AE66: =7507926.05 -> 0 | AF66: =4619423.14 -> 0 | AG66: =1563386.02 -> 0 | AH66: =1354976.77 -> 0 | AI66: =129313.61 -> 0 | AJ66: =2253774.39 -> 0 | AK66: =797049.04 -> 0 | AL66: =393881.62 -> 0 | AM66: =251782.58 -> 0 | AN66: =30194.17 -> 0 | AO66: =800214.72 -> 0 | AP66: =395446.02 -> 0 | AQ66: =252782.59 -> 0 | AR66: =30314.09 -> 0 | AS66: =2262725.8 -> 0 | AT66: =17345467.78 -> 0 | AU66: =1106895.18 -> 0 | AV66: =6983780.74 -> 0 | AW66: =5096573.14 -> 0 | AX66: =48592617.73 -> 0 | AY66: =8887154.09 -> 0 | AZ66: =27429880.38 -> 0 | BA66: =7613661.08 -> 0 | BB66: =4756235.9 -> 0 | BC66: =6946602.2 -> 0 | BD66: =1912143.34 -> 0 | BE66: =562618.89 -> 0 | BF66: =12671856.15 -> 0 | BG66: =7212656.22 -> 0 | BH66: =2649222.96 -> 0 | BI66: =2418205.22 -> 0 | BJ66: =529209.3 -> 0 | BK66: =6366635.85 -> 0 | BL66: =1403808.18 -> 0 | BM66: =193747.97 -> 0 | BN66: =424262.33 -> 0 | BO66: =104839.96 -> 0
B67: 4.3 | C67: Reinsurance | D67: =SUM(E67:XFD67) -> 0 | E67: =0 -> 0 | F67: =0 -> 0 | G67: =0 -> 0 | H67: =0 -> 0 | I67: =0 -> 0 | J67: =0 -> 0 | K67: =0 -> 0 | L67: =0 -> 0 | M67: =0 -> 0 | N67: =0 -> 0 | O67: =0 -> 0 | P67: =0 -> 0 | Q67: =0 -> 0 | R67: =0 -> 0 | S67: =0 -> 0 | T67: =0 -> 0 | U67: =0 -> 0 | V67: =0 -> 0 | W67: =0 -> 0 | X67: =0 -> 0 | Y67: =0 -> 0 | Z67: =0 -> 0 | AA67: =0 -> 0 | AB67: =0 -> 0 | AC67: =0 -> 0 | AD67: =0 -> 0 | AE67: =0 -> 0 | AF67: =0 -> 0 | AG67: =0 -> 0 | AH67: =0 -> 0 | AI67: =0 -> 0 | AJ67: =0 -> 0 | AK67: =0 -> 0 | AL67: =0 -> 0 | AM67: =0 -> 0 | AN67: =0 -> 0 | AO67: =0 -> 0 | AP67: =0 -> 0 | AQ67: =0 -> 0 | AR67: =0 -> 0 | AS67: =0 -> 0 | AT67: =0 -> 0 | AU67: =0 -> 0 | AV67: =0 -> 0 | AW67: =0 -> 0 | AX67: =0 -> 0 | AY67: =0 -> 0 | AZ67: =0 -> 0 | BA67: =0 -> 0 | BB67: =0 -> 0 | BC67: =0 -> 0 | BD67: =0 -> 0 | BE67: =0 -> 0 | BF67: =0 -> 0 | BG67: =0 -> 0 | BH67: =0 -> 0 | BI67: =0 -> 0 | BJ67: =0 -> 0 | BK67: =0 -> 0 | BL67: =0 -> 0 | BM67: =0 -> 0 | BN67: =0 -> 0 | BO67: =0 -> 0
B68: 4.4 | C68: Member Cost Sharing | D68: =SUM(E68:XFD68) -> 71320436.4 | E68: =0 -> 0 | F68: =581358.59 -> 0 | G68: =127427.73 -> 0 | H68: =47776.13 -> 0 | I68: =106233.68 -> 0 | J68: =652911.37 -> 0 | K68: =1449578.82 -> 0 | L68: =511499.71 -> 0 | M68: =600681.81 -> 0 | N68: =91951 -> 0 | O68: =3074987.21 -> 0 | P68: =2736327.23 -> 0 | Q68: =2199938.15 -> 0 | R68: =1087154.19 -> 0 | S68: =694946.06 -> 0 | T68: =83339.04 -> 0 | U68: =2009963.23 -> 0 | V68: =610400.4 -> 0 | W68: =117535.13 -> 0 | X68: =569854.47 -> 0 | Y68: =6767181.09 -> 0 | Z68: =2888725.6 -> 0 | AA68: =687078.05 -> 0 | AB68: =1208392.64 -> 0 | AC68: =164054.14 -> 0 | AD68: =6159917.02 -> 0 | AE68: =2089977.52 -> 0 | AF68: =1285906.45 -> 0 | AG68: =435198.96 -> 0 | AH68: =377184.19 -> 0 | AI68: =35996.96 -> 0 | AJ68: =669290.94 -> 0 | AK68: =236695.25 -> 0 | AL68: =116968.85 -> 0 | AM68: =74770.48 -> 0 | AN68: =8966.6 -> 0 | AO68: =232658.32 -> 0 | AP68: =114973.9 -> 0 | AQ68: =73495.24 -> 0 | AR68: =8813.67 -> 0 | AS68: =657875.9 -> 0 | AT68: =3204741.79 -> 0 | AU68: =204509.52 -> 0 | AV68: =1290320.58 -> 0 | AW68: =941640.84 -> 0 | AX68: =9307661.46 -> 0 | AY68: =1366453.56 -> 0 | AZ68: =4444121.78 -> 0 | BA68: =1131897.57 -> 0 | BB68: =722940.66 -> 0 | BC68: =1055873.03 -> 0 | BD68: =290642.89 -> 0 | BE68: =85517.22 -> 0 | BF68: =1956025.68 -> 0 | BG68: =1113344.45 -> 0 | BH68: =408933.63 -> 0 | BI68: =373273.77 -> 0 | BJ68: =81688.66 -> 0 | BK68: =1268982.99 -> 0 | BL68: =279803.77 -> 0 | BM68: =38617.39 -> 0 | BN68: =84562.98 -> 0 | BO68: =20896.46 -> 0
B69: 4.5 | C69: Cost Sharing Reduction | D69: =SUM(E69:XFD69) -> 0 | E69: =0 -> 0 | F69: =0 -> 0 | G69: =0 -> 0 | H69: =0 -> 0 | I69: =0 -> 0 | J69: =0 -> 0 | K69: =0 -> 0 | L69: =0 -> 0 | M69: =0 -> 0 | N69: =0 -> 0 | O69: =0 -> 0 | P69: =0 -> 0 | Q69: =0 -> 0 | R69: =0 -> 0 | S69: =0 -> 0 | T69: =0 -> 0 | U69: =0 -> 0 | V69: =0 -> 0 | W69: =0 -> 0 | X69: =0 -> 0 | Y69: =0 -> 0 | Z69: =0 -> 0 | AA69: =0 -> 0 | AB69: =0 -> 0 | AC69: =0 -> 0 | AD69: =0 -> 0 | AE69: =0 -> 0 | AF69: =0 -> 0 | AG69: =0 -> 0 | AH69: =0 -> 0 | AI69: =0 -> 0 | AJ69: =0 -> 0 | AK69: =0 -> 0 | AL69: =0 -> 0 | AM69: =0 -> 0 | AN69: =0 -> 0 | AO69: =0 -> 0 | AP69: =0 -> 0 | AQ69: =0 -> 0 | AR69: =0 -> 0 | AS69: =0 -> 0 | AT69: =0 -> 0 | AU69: =0 -> 0 | AV69: =0 -> 0 | AW69: =0 -> 0 | AX69: =0 -> 0 | AY69: =0 -> 0 | AZ69: =0 -> 0 | BA69: =0 -> 0 | BB69: =0 -> 0 | BC69: =0 -> 0 | BD69: =0 -> 0 | BE69: =0 -> 0 | BF69: =0 -> 0 | BG69: =0 -> 0 | BH69: =0 -> 0 | BI69: =0 -> 0 | BJ69: =0 -> 0 | BK69: =0 -> 0 | BL69: =0 -> 0 | BM69: =0 -> 0 | BN69: =0 -> 0 | BO69: =0 -> 0
B70: 4.6 | C70: Incurred Claims | D70: =D66-D67-D68-D69 -> 244718179.2 | E70: =E66-E67-E68-E69 -> 0 | F70: =F66-F67-F68-F69 -> 0 | G70: =G66-G67-G68-G69 -> 0 | H70: =H66-H67-H68-H69 -> 0 | I70: =I66-I67-I68-I69 -> 0 | J70: =J66-J67-J68-J69 -> 0 | K70: =K66-K67-K68-K69 -> 0 | L70: =L66-L67-L68-L69 -> 0 | M70: =M66-M67-M68-M69 -> 0 | N70: =N66-N67-N68-N69 -> 0 | O70: =O66-O67-O68-O69 -> 0 | P70: =P66-P67-P68-P69 -> 0 | Q70: =Q66-Q67-Q68-Q69 -> 0 | R70: =R66-R67-R68-R69 -> 0 | S70: =S66-S67-S68-S69 -> 0 | T70: =T66-T67-T68-T69 -> 0 | U70: =U66-U67-U68-U69 -> 0 | V70: =V66-V67-V68-V69 -> 0 | W70: =W66-W67-W68-W69 -> 0 | X70: =X66-X67-X68-X69 -> 0 | Y70: =Y66-Y67-Y68-Y69 -> 0 | Z70: =Z66-Z67-Z68-Z69 -> 0 | AA70: =AA66-AA67-AA68-AA69 -> 0 | AB70: =AB66-AB67-AB68-AB69 -> 0 | AC70: =AC66-AC67-AC68-AC69 -> 0 | AD70: =AD66-AD67-AD68-AD69 -> 0 | AE70: =AE66-AE67-AE68-AE69 -> 0 | AF70: =AF66-AF67-AF68-AF69 -> 0 | AG70: =AG66-AG67-AG68-AG69 -> 0 | AH70: =AH66-AH67-AH68-AH69 -> 0 | AI70: =AI66-AI67-AI68-AI69 -> 0 | AJ70: =AJ66-AJ67-AJ68-AJ69 -> 0 | AK70: =AK66-AK67-AK68-AK69 -> 0 | AL70: =AL66-AL67-AL68-AL69 -> 0 | AM70: =AM66-AM67-AM68-AM69 -> 0 | AN70: =AN66-AN67-AN68-AN69 -> 0 | AO70: =AO66-AO67-AO68-AO69 -> 0 | AP70: =AP66-AP67-AP68-AP69 -> 0 | AQ70: =AQ66-AQ67-AQ68-AQ69 -> 0 | AR70: =AR66-AR67-AR68-AR69 -> 0 | AS70: =AS66-AS67-AS68-AS69 -> 0 | AT70: =AT66-AT67-AT68-AT69 -> 0 | AU70: =AU66-AU67-AU68-AU69 -> 0 | AV70: =AV66-AV67-AV68-AV69 -> 0 | AW70: =AW66-AW67-AW68-AW69 -> 0 | AX70: =AX66-AX67-AX68-AX69 -> 0 | AY70: =AY66-AY67-AY68-AY69 -> 0 | AZ70: =AZ66-AZ67-AZ68-AZ69 -> 0 | BA70: =BA66-BA67-BA68-BA69 -> 0 | BB70: =BB66-BB67-BB68-BB69 -> 0 | BC70: =BC66-BC67-BC68-BC69 -> 0 | BD70: =BD66-BD67-BD68-BD69 -> 0 | BE70: =BE66-BE67-BE68-BE69 -> 0 | BF70: =BF66-BF67-BF68-BF69 -> 0 | BG70: =BG66-BG67-BG68-BG69 -> 0 | BH70: =BH66-BH67-BH68-BH69 -> 0 | BI70: =BI66-BI67-BI68-BI69 -> 0 | BJ70: =BJ66-BJ67-BJ68-BJ69 -> 0 | BK70: =BK66-BK67-BK68-BK69 -> 0 | BL70: =BL66-BL67-BL68-BL69 -> 0 | BM70: =BM66-BM67-BM68-BM69 -> 0 | BN70: =BN66-BN67-BN68-BN69 -> 0 | BO70: =BO66-BO67-BO68-BO69 -> 0
B71: 4.7 | C71: Risk Adjustment Transfer Amount | D71: =SUM(E71:XFD71) -> 283747.37 | E71: =0 -> 0 | F71: =1611.54 -> 0 | G71: =304.04 -> 0 | H71: =115.74 -> 0 | I71: =251.9 -> 0 | J71: =1722.44 -> 0 | K71: =4443.67 -> 0 | L71: =1341.24 -> 0 | M71: =1584.93 -> 0 | N71: =246.33 -> 0 | O71: =7720.27 -> 0 | P71: =7982.9 -> 0 | Q71: =7194.69 -> 0 | R71: =3041.26 -> 0 | S71: =1956.22 -> 0 | T71: =238.18 -> 0 | U71: =6208.01 -> 0 | V71: =1622.72 -> 0 | W71: =317.24 -> 0 | X71: =1505.53 -> 0 | Y71: =19664.54 -> 0 | Z71: =7620.83 -> 0 | AA71: =1550.47 -> 0 | AB71: =2743.9 -> 0 | AC71: =378.22 -> 0 | AD71: =19468.48 -> 0 | AE71: =6316.25 -> 0 | AF71: =4083.51 -> 0 | AG71: =1182.15 -> 0 | AH71: =1030.96 -> 0 | AI71: =99.9 -> 0 | AJ71: =1847.19 -> 0 | AK71: =686.43 -> 0 | AL71: =290.16 -> 0 | AM71: =186.64 -> 0 | AN71: =22.72 -> 0 | AO71: =695.25 -> 0 | AP71: =293.89 -> 0 | AQ71: =189.04 -> 0 | AR71: =23.02 -> 0 | AS71: =1870.94 -> 0 | AT71: =17322.21 -> 0 | AU71: =966.01 -> 0 | AV71: =5965.8 -> 0 | AW71: =4380.87 -> 0 | AX71: =45798.44 -> 0 | AY71: =8767.64 -> 0 | AZ71: =26796.82 -> 0 | BA71: =7556.45 -> 0 | BB71: =4226.22 -> 0 | BC71: =7216.07 -> 0 | BD71: =1709.67 -> 0 | BE71: =510.74 -> 0 | BF71: =12492.53 -> 0 | BG71: =7471.58 -> 0 | BH71: =2347.45 -> 0 | BI71: =2156.13 -> 0 | BJ71: =479.08 -> 0 | BK71: =5942.85 -> 0 | BL71: =1376.89 -> 0 | BM71: =162.55 -> 0 | BN71: =358.17 -> 0 | BO71: =89.86 -> 0
B72: 4.8 | C72: Premium | D72: =SUM(E72:XFD72) -> 290526851.6 | E72: =0 -> 0 | F72: =1561891.57 -> 0 | G72: =342125.19 -> 0 | H72: =128582.66 -> 0 | I72: =285637 -> 0 | J72: =1753881.19 -> 0 | K72: =4306100.38 -> 0 | L72: =1520037.01 -> 0 | M72: =1784455.81 -> 0 | N72: =273522.67 -> 0 | O72: =7861548.03 -> 0 | P72: =8129213.89 -> 0 | Q72: =6971907.18 -> 0 | R72: =3445825.44 -> 0 | S72: =2202905.73 -> 0 | T72: =264283.39 -> 0 | U72: =6016243.36 -> 0 | V72: =1827185.63 -> 0 | W72: =351887.63 -> 0 | X72: =1706124.34 -> 0 | Y72: =20025206.21 -> 0 | Z72: =7385078.54 -> 0 | AA72: =1756973.43 -> 0 | AB72: =3089763.4 -> 0 | AC72: =419439.44 -> 0 | AD72: =19825685.32 -> 0 | AE72: =6432107.05 -> 0 | AF72: =3957472.67 -> 0 | AG72: =1339416.49 -> 0 | AH72: =1161141.72 -> 0 | AI72: =110924.55 -> 0 | AJ72: =1881364.09 -> 0 | AK72: =665450.97 -> 0 | AL72: =329077.16 -> 0 | AM72: =210436.43 -> 0 | AN72: =25150.09 -> 0 | AO72: =674004.46 -> 0 | AP72: =333307.01 -> 0 | AQ72: =213141.31 -> 0 | AR72: =25473.36 -> 0 | AS72: =1905546.54 -> 0 | AT72: =16786266.02 -> 0 | AU72: =1071333.81 -> 0 | AV72: =6760038.32 -> 0 | AW72: =4932950.35 -> 0 | AX72: =46637686.68 -> 0 | AY72: =8928488.37 -> 0 | AZ72: =27288219.28 -> 0 | BA72: =7695276.61 -> 0 | BB72: =4788595.53 -> 0 | BC72: =6992586.16 -> 0 | BD72: =1925080.34 -> 0 | BE72: =566485.35 -> 0 | BF72: =12721701.75 -> 0 | BG72: =7240308.4 -> 0 | BH72: =2659848.22 -> 0 | BI72: =2427836.43 -> 0 | BJ72: =531642.79 -> 0 | BK72: =6051677.47 -> 0 | BL72: =1334117.86 -> 0 | BM72: =183805.28 -> 0 | BN72: =403338.32 -> 0 | BO72: =100049.95 -> 0
B73: 4.9 | C73: Projected Member Months | D73: =SUM(E73:XFD73) -> 411232 | E73: =0 -> 0 | F73: =3653 -> 0 | G73: =681 -> 0 | H73: =261 -> 0 | I73: =584 -> 0 | J73: =3285 -> 0 | K73: =7528 -> 0 | L73: =2323 -> 0 | M73: =2655 -> 0 | N73: =415 -> 0 | O73: =11674 -> 0 | P73: =11381 -> 0 | Q73: =11885 -> 0 | R73: =5135 -> 0 | S73: =3196 -> 0 | T73: =391 -> 0 | U73: =10500 -> 0 | V73: =2714 -> 0 | W73: =533 -> 0 | X73: =2603 -> 0 | Y73: =28007 -> 0 | Z73: =13694 -> 0 | AA73: =2848 -> 0 | AB73: =4876 -> 0 | AC73: =675 -> 0 | AD73: =26916 -> 0 | AE73: =8882 -> 0 | AF73: =6824 -> 0 | AG73: =2019 -> 0 | AH73: =1704 -> 0 | AI73: =166 -> 0 | AJ73: =2692 -> 0 | AK73: =1189 -> 0 | AL73: =514 -> 0 | AM73: =320 -> 0 | AN73: =39 -> 0 | AO73: =1189 -> 0 | AP73: =514 -> 0 | AQ73: =320 -> 0 | AR73: =39 -> 0 | AS73: =2692 -> 0 | AT73: =27153 -> 0 | AU73: =1504 -> 0 | AV73: =9559 -> 0 | AW73: =6791 -> 0 | AX73: =61246 -> 0 | AY73: =10994 -> 0 | AZ73: =33850 -> 0 | BA73: =9422 -> 0 | BB73: =6454 -> 0 | BC73: =10781 -> 0 | BD73: =2526 -> 0 | BE73: =758 -> 0 | BF73: =15699 -> 0 | BG73: =11157 -> 0 | BH73: =3583 -> 0 | BI73: =3184 -> 0 | BJ73: =711 -> 0 | BK73: =5972 -> 0 | BL73: =1644 -> 0 | BM73: =198 -> 0 | BN73: =423 -> 0 | BO73: =107 -> 0
B74: 4.10 | C74: Loss Ratio | D74: =D70/(D71+D72) -> 0.8415036455 | E74: =E70/(E71+E72) -> 0 | F74: =F70/(F71+F72) -> 0 | G74: =G70/(G71+G72) -> 0 | H74: =H70/(H71+H72) -> 0 | I74: =I70/(I71+I72) -> 0 | J74: =J70/(J71+J72) -> 0 | K74: =K70/(K71+K72) -> 0 | L74: =L70/(L71+L72) -> 0 | M74: =M70/(M71+M72) -> 0 | N74: =N70/(N71+N72) -> 0 | O74: =O70/(O71+O72) -> 0 | P74: =P70/(P71+P72) -> 0 | Q74: =Q70/(Q71+Q72) -> 0 | R74: =R70/(R71+R72) -> 0 | S74: =S70/(S71+S72) -> 0 | T74: =T70/(T71+T72) -> 0 | U74: =U70/(U71+U72) -> 0 | V74: =V70/(V71+V72) -> 0 | W74: =W70/(W71+W72) -> 0 | X74: =X70/(X71+X72) -> 0 | Y74: =Y70/(Y71+Y72) -> 0 | Z74: =Z70/(Z71+Z72) -> 0 | AA74: =AA70/(AA71+AA72) -> 0 | AB74: =AB70/(AB71+AB72) -> 0 | AC74: =AC70/(AC71+AC72) -> 0 | AD74: =AD70/(AD71+AD72) -> 0 | AE74: =AE70/(AE71+AE72) -> 0 | AF74: =AF70/(AF71+AF72) -> 0 | AG74: =AG70/(AG71+AG72) -> 0 | AH74: =AH70/(AH71+AH72) -> 0 | AI74: =AI70/(AI71+AI72) -> 0 | AJ74: =AJ70/(AJ71+AJ72) -> 0 | AK74: =AK70/(AK71+AK72) -> 0 | AL74: =AL70/(AL71+AL72) -> 0 | AM74: =AM70/(AM71+AM72) -> 0 | AN74: =AN70/(AN71+AN72) -> 0 | AO74: =AO70/(AO71+AO72) -> 0 | AP74: =AP70/(AP71+AP72) -> 0 | AQ74: =AQ70/(AQ71+AQ72) -> 0 | AR74: =AR70/(AR71+AR72) -> 0 | AS74: =AS70/(AS71+AS72) -> 0 | AT74: =AT70/(AT71+AT72) -> 0 | AU74: =AU70/(AU71+AU72) -> 0 | AV74: =AV70/(AV71+AV72) -> 0 | AW74: =AW70/(AW71+AW72) -> 0 | AX74: =AX70/(AX71+AX72) -> 0 | AY74: =AY70/(AY71+AY72) -> 0 | AZ74: =AZ70/(AZ71+AZ72) -> 0 | BA74: =BA70/(BA71+BA72) -> 0 | BB74: =BB70/(BB71+BB72) -> 0 | BC74: =BC70/(BC71+BC72) -> 0 | BD74: =BD70/(BD71+BD72) -> 0 | BE74: =BE70/(BE71+BE72) -> 0 | BF74: =BF70/(BF71+BF72) -> 0 | BG74: =BG70/(BG71+BG72) -> 0 | BH74: =BH70/(BH71+BH72) -> 0 | BI74: =BI70/(BI71+BI72) -> 0 | BJ74: =BJ70/(BJ71+BJ72) -> 0 | BK74: =BK70/(BK71+BK72) -> 0 | BL74: =BL70/(BL71+BL72) -> 0 | BM74: =BM70/(BM71+BM72) -> 0 | BN74: =BN70/(BN71+BN72) -> 0 | BO74: =BO70/(BO71+BO72) -> 0
C75: Per Member Per Month
B76: 4.11 | C76: Allowed Claims | D76: =D66/D73 -> 768.5166 | E76: =E66/E73 -> 0 | F76: =F66/F73 -> 0 | G76: =G66/G73 -> 0 | H76: =H66/H73 -> 0 | I76: =I66/I73 -> 0 | J76: =J66/J73 -> 0 | K76: =K66/K73 -> 0 | L76: =L66/L73 -> 0 | M76: =M66/M73 -> 0 | N76: =N66/N73 -> 0 | O76: =O66/O73 -> 0 | P76: =P66/P73 -> 0 | Q76: =Q66/Q73 -> 0 | R76: =R66/R73 -> 0 | S76: =S66/S73 -> 0 | T76: =T66/T73 -> 0 | U76: =U66/U73 -> 0 | V76: =V66/V73 -> 0 | W76: =W66/W73 -> 0 | X76: =X66/X73 -> 0 | Y76: =Y66/Y73 -> 0 | Z76: =Z66/Z73 -> 0 | AA76: =AA66/AA73 -> 0 | AB76: =AB66/AB73 -> 0 | AC76: =AC66/AC73 -> 0 | AD76: =AD66/AD73 -> 0 | AE76: =AE66/AE73 -> 0 | AF76: =AF66/AF73 -> 0 | AG76: =AG66/AG73 -> 0 | AH76: =AH66/AH73 -> 0 | AI76: =AI66/AI73 -> 0 | AJ76: =AJ66/AJ73 -> 0 | AK76: =AK66/AK73 -> 0 | AL76: =AL66/AL73 -> 0 | AM76: =AM66/AM73 -> 0 | AN76: =AN66/AN73 -> 0 | AO76: =AO66/AO73 -> 0 | AP76: =AP66/AP73 -> 0 | AQ76: =AQ66/AQ73 -> 0 | AR76: =AR66/AR73 -> 0 | AS76: =AS66/AS73 -> 0 | AT76: =AT66/AT73 -> 0 | AU76: =AU66/AU73 -> 0 | AV76: =AV66/AV73 -> 0 | AW76: =AW66/AW73 -> 0 | AX76: =AX66/AX73 -> 0 | AY76: =AY66/AY73 -> 0 | AZ76: =AZ66/AZ73 -> 0 | BA76: =BA66/BA73 -> 0 | BB76: =BB66/BB73 -> 0 | BC76: =BC66/BC73 -> 0 | BD76: =BD66/BD73 -> 0 | BE76: =BE66/BE73 -> 0 | BF76: =BF66/BF73 -> 0 | BG76: =BG66/BG73 -> 0 | BH76: =BH66/BH73 -> 0 | BI76: =BI66/BI73 -> 0 | BJ76: =BJ66/BJ73 -> 0 | BK76: =BK66/BK73 -> 0 | BL76: =BL66/BL73 -> 0 | BM76: =BM66/BM73 -> 0 | BN76: =BN66/BN73 -> 0 | BO76: =BO66/BO73 -> 0
B77: 4.12 | C77: Reinsurance | D77: =D67/D73 -> 0 | E77: =E67/E73 -> 0 | F77: =F67/F73 -> 0 | G77: =G67/G73 -> 0 | H77: =H67/H73 -> 0 | I77: =I67/I73 -> 0 | J77: =J67/J73 -> 0 | K77: =K67/K73 -> 0 | L77: =L67/L73 -> 0 | M77: =M67/M73 -> 0 | N77: =N67/N73 -> 0 | O77: =O67/O73 -> 0 | P77: =P67/P73 -> 0 | Q77: =Q67/Q73 -> 0 | R77: =R67/R73 -> 0 | S77: =S67/S73 -> 0 | T77: =T67/T73 -> 0 | U77: =U67/U73 -> 0 | V77: =V67/V73 -> 0 | W77: =W67/W73 -> 0 | X77: =X67/X73 -> 0 | Y77: =Y67/Y73 -> 0 | Z77: =Z67/Z73 -> 0 | AA77: =AA67/AA73 -> 0 | AB77: =AB67/AB73 -> 0 | AC77: =AC67/AC73 -> 0 | AD77: =AD67/AD73 -> 0 | AE77: =AE67/AE73 -> 0 | AF77: =AF67/AF73 -> 0 | AG77: =AG67/AG73 -> 0 | AH77: =AH67/AH73 -> 0 | AI77: =AI67/AI73 -> 0 | AJ77: =AJ67/AJ73 -> 0 | AK77: =AK67/AK73 -> 0 | AL77: =AL67/AL73 -> 0 | AM77: =AM67/AM73 -> 0 | AN77: =AN67/AN73 -> 0 | AO77: =AO67/AO73 -> 0 | AP77: =AP67/AP73 -> 0 | AQ77: =AQ67/AQ73 -> 0 | AR77: =AR67/AR73 -> 0 | AS77: =AS67/AS73 -> 0 | AT77: =AT67/AT73 -> 0 | AU77: =AU67/AU73 -> 0 | AV77: =AV67/AV73 -> 0 | AW77: =AW67/AW73 -> 0 | AX77: =AX67/AX73 -> 0 | AY77: =AY67/AY73 -> 0 | AZ77: =AZ67/AZ73 -> 0 | BA77: =BA67/BA73 -> 0 | BB77: =BB67/BB73 -> 0 | BC77: =BC67/BC73 -> 0 | BD77: =BD67/BD73 -> 0 | BE77: =BE67/BE73 -> 0 | BF77: =BF67/BF73 -> 0 | BG77: =BG67/BG73 -> 0 | BH77: =BH67/BH73 -> 0 | BI77: =BI67/BI73 -> 0 | BJ77: =BJ67/BJ73 -> 0 | BK77: =BK67/BK73 -> 0 | BL77: =BL67/BL73 -> 0 | BM77: =BM67/BM73 -> 0 | BN77: =BN67/BN73 -> 0 | BO77: =BO67/BO73 -> 0
B78: 4.13 | C78: Member Cost Sharing | D78: =D68/D73 -> 173.4311 | E78: =E68/E73 -> 0 | F78: =F68/F73 -> 0 | G78: =G68/G73 -> 0 | H78: =H68/H73 -> 0 | I78: =I68/I73 -> 0 | J78: =J68/J73 -> 0 | K78: =K68/K73 -> 0 | L78: =L68/L73 -> 0 | M78: =M68/M73 -> 0 | N78: =N68/N73 -> 0 | O78: =O68/O73 -> 0 | P78: =P68/P73 -> 0 | Q78: =Q68/Q73 -> 0 | R78: =R68/R73 -> 0 | S78: =S68/S73 -> 0 | T78: =T68/T73 -> 0 | U78: =U68/U73 -> 0 | V78: =V68/V73 -> 0 | W78: =W68/W73 -> 0 | X78: =X68/X73 -> 0 | Y78: =Y68/Y73 -> 0 | Z78: =Z68/Z73 -> 0 | AA78: =AA68/AA73 -> 0 | AB78: =AB68/AB73 -> 0 | AC78: =AC68/AC73 -> 0 | AD78: =AD68/AD73 -> 0 | AE78: =AE68/AE73 -> 0 | AF78: =AF68/AF73 -> 0 | AG78: =AG68/AG73 -> 0 | AH78: =AH68/AH73 -> 0 | AI78: =AI68/AI73 -> 0 | AJ78: =AJ68/AJ73 -> 0 | AK78: =AK68/AK73 -> 0 | AL78: =AL68/AL73 -> 0 | AM78: =AM68/AM73 -> 0 | AN78: =AN68/AN73 -> 0 | AO78: =AO68/AO73 -> 0 | AP78: =AP68/AP73 -> 0 | AQ78: =AQ68/AQ73 -> 0 | AR78: =AR68/AR73 -> 0 | AS78: =AS68/AS73 -> 0 | AT78: =AT68/AT73 -> 0 | AU78: =AU68/AU73 -> 0 | AV78: =AV68/AV73 -> 0 | AW78: =AW68/AW73 -> 0 | AX78: =AX68/AX73 -> 0 | AY78: =AY68/AY73 -> 0 | AZ78: =AZ68/AZ73 -> 0 | BA78: =BA68/BA73 -> 0 | BB78: =BB68/BB73 -> 0 | BC78: =BC68/BC73 -> 0 | BD78: =BD68/BD73 -> 0 | BE78: =BE68/BE73 -> 0 | BF78: =BF68/BF73 -> 0 | BG78: =BG68/BG73 -> 0 | BH78: =BH68/BH73 -> 0 | BI78: =BI68/BI73 -> 0 | BJ78: =BJ68/BJ73 -> 0 | BK78: =BK68/BK73 -> 0 | BL78: =BL68/BL73 -> 0 | BM78: =BM68/BM73 -> 0 | BN78: =BN68/BN73 -> 0 | BO78: =BO68/BO73 -> 0
B79: 4.14 | C79: Cost Sharing Reduction | D79: =D69/D73 -> 0 | E79: =E69/E73 -> 0 | F79: =F69/F73 -> 0 | G79: =G69/G73 -> 0 | H79: =H69/H73 -> 0 | I79: =I69/I73 -> 0 | J79: =J69/J73 -> 0 | K79: =K69/K73 -> 0 | L79: =L69/L73 -> 0 | M79: =M69/M73 -> 0 | N79: =N69/N73 -> 0 | O79: =O69/O73 -> 0 | P79: =P69/P73 -> 0 | Q79: =Q69/Q73 -> 0 | R79: =R69/R73 -> 0 | S79: =S69/S73 -> 0 | T79: =T69/T73 -> 0 | U79: =U69/U73 -> 0 | V79: =V69/V73 -> 0 | W79: =W69/W73 -> 0 | X79: =X69/X73 -> 0 | Y79: =Y69/Y73 -> 0 | Z79: =Z69/Z73 -> 0 | AA79: =AA69/AA73 -> 0 | AB79: =AB69/AB73 -> 0 | AC79: =AC69/AC73 -> 0 | AD79: =AD69/AD73 -> 0 | AE79: =AE69/AE73 -> 0 | AF79: =AF69/AF73 -> 0 | AG79: =AG69/AG73 -> 0 | AH79: =AH69/AH73 -> 0 | AI79: =AI69/AI73 -> 0 | AJ79: =AJ69/AJ73 -> 0 | AK79: =AK69/AK73 -> 0 | AL79: =AL69/AL73 -> 0 | AM79: =AM69/AM73 -> 0 | AN79: =AN69/AN73 -> 0 | AO79: =AO69/AO73 -> 0 | AP79: =AP69/AP73 -> 0 | AQ79: =AQ69/AQ73 -> 0 | AR79: =AR69/AR73 -> 0 | AS79: =AS69/AS73 -> 0 | AT79: =AT69/AT73 -> 0 | AU79: =AU69/AU73 -> 0 | AV79: =AV69/AV73 -> 0 | AW79: =AW69/AW73 -> 0 | AX79: =AX69/AX73 -> 0 | AY79: =AY69/AY73 -> 0 | AZ79: =AZ69/AZ73 -> 0 | BA79: =BA69/BA73 -> 0 | BB79: =BB69/BB73 -> 0 | BC79: =BC69/BC73 -> 0 | BD79: =BD69/BD73 -> 0 | BE79: =BE69/BE73 -> 0 | BF79: =BF69/BF73 -> 0 | BG79: =BG69/BG73 -> 0 | BH79: =BH69/BH73 -> 0 | BI79: =BI69/BI73 -> 0 | BJ79: =BJ69/BJ73 -> 0 | BK79: =BK69/BK73 -> 0 | BL79: =BL69/BL73 -> 0 | BM79: =BM69/BM73 -> 0 | BN79: =BN69/BN73 -> 0 | BO79: =BO69/BO73 -> 0
B80: 4.15 | C80: Incurred Claims | D80: =D70/D73 -> 595.0854 | E80: =E70/E73 -> 0 | F80: =F70/F73 -> 0 | G80: =G70/G73 -> 0 | H80: =H70/H73 -> 0 | I80: =I70/I73 -> 0 | J80: =J70/J73 -> 0 | K80: =K70/K73 -> 0 | L80: =L70/L73 -> 0 | M80: =M70/M73 -> 0 | N80: =N70/N73 -> 0 | O80: =O70/O73 -> 0 | P80: =P70/P73 -> 0 | Q80: =Q70/Q73 -> 0 | R80: =R70/R73 -> 0 | S80: =S70/S73 -> 0 | T80: =T70/T73 -> 0 | U80: =U70/U73 -> 0 | V80: =V70/V73 -> 0 | W80: =W70/W73 -> 0 | X80: =X70/X73 -> 0 | Y80: =Y70/Y73 -> 0 | Z80: =Z70/Z73 -> 0 | AA80: =AA70/AA73 -> 0 | AB80: =AB70/AB73 -> 0 | AC80: =AC70/AC73 -> 0 | AD80: =AD70/AD73 -> 0 | AE80: =AE70/AE73 -> 0 | AF80: =AF70/AF73 -> 0 | AG80: =AG70/AG73 -> 0 | AH80: =AH70/AH73 -> 0 | AI80: =AI70/AI73 -> 0 | AJ80: =AJ70/AJ73 -> 0 | AK80: =AK70/AK73 -> 0 | AL80: =AL70/AL73 -> 0 | AM80: =AM70/AM73 -> 0 | AN80: =AN70/AN73 -> 0 | AO80: =AO70/AO73 -> 0 | AP80: =AP70/AP73 -> 0 | AQ80: =AQ70/AQ73 -> 0 | AR80: =AR70/AR73 -> 0 | AS80: =AS70/AS73 -> 0 | AT80: =AT70/AT73 -> 0 | AU80: =AU70/AU73 -> 0 | AV80: =AV70/AV73 -> 0 | AW80: =AW70/AW73 -> 0 | AX80: =AX70/AX73 -> 0 | AY80: =AY70/AY73 -> 0 | AZ80: =AZ70/AZ73 -> 0 | BA80: =BA70/BA73 -> 0 | BB80: =BB70/BB73 -> 0 | BC80: =BC70/BC73 -> 0 | BD80: =BD70/BD73 -> 0 | BE80: =BE70/BE73 -> 0 | BF80: =BF70/BF73 -> 0 | BG80: =BG70/BG73 -> 0 | BH80: =BH70/BH73 -> 0 | BI80: =BI70/BI73 -> 0 | BJ80: =BJ70/BJ73 -> 0 | BK80: =BK70/BK73 -> 0 | BL80: =BL70/BL73 -> 0 | BM80: =BM70/BM73 -> 0 | BN80: =BN70/BN73 -> 0 | BO80: =BO70/BO73 -> 0
B81: 4.16 | C81: Risk Adjustment Transfer Amount | D81: =D71/D73 -> 0.69 | E81: =E71/E73 -> 0 | F81: =F71/F73 -> 0 | G81: =G71/G73 -> 0 | H81: =H71/H73 -> 0 | I81: =I71/I73 -> 0 | J81: =J71/J73 -> 0 | K81: =K71/K73 -> 0 | L81: =L71/L73 -> 0 | M81: =M71/M73 -> 0 | N81: =N71/N73 -> 0 | O81: =O71/O73 -> 0 | P81: =P71/P73 -> 0 | Q81: =Q71/Q73 -> 0 | R81: =R71/R73 -> 0 | S81: =S71/S73 -> 0 | T81: =T71/T73 -> 0 | U81: =U71/U73 -> 0 | V81: =V71/V73 -> 0 | W81: =W71/W73 -> 0 | X81: =X71/X73 -> 0 | Y81: =Y71/Y73 -> 0 | Z81: =Z71/Z73 -> 0 | AA81: =AA71/AA73 -> 0 | AB81: =AB71/AB73 -> 0 | AC81: =AC71/AC73 -> 0 | AD81: =AD71/AD73 -> 0 | AE81: =AE71/AE73 -> 0 | AF81: =AF71/AF73 -> 0 | AG81: =AG71/AG73 -> 0 | AH81: =AH71/AH73 -> 0 | AI81: =AI71/AI73 -> 0 | AJ81: =AJ71/AJ73 -> 0 | AK81: =AK71/AK73 -> 0 | AL81: =AL71/AL73 -> 0 | AM81: =AM71/AM73 -> 0 | AN81: =AN71/AN73 -> 0 | AO81: =AO71/AO73 -> 0 | AP81: =AP71/AP73 -> 0 | AQ81: =AQ71/AQ73 -> 0 | AR81: =AR71/AR73 -> 0 | AS81: =AS71/AS73 -> 0 | AT81: =AT71/AT73 -> 0 | AU81: =AU71/AU73 -> 0 | AV81: =AV71/AV73 -> 0 | AW81: =AW71/AW73 -> 0 | AX81: =AX71/AX73 -> 0 | AY81: =AY71/AY73 -> 0 | AZ81: =AZ71/AZ73 -> 0 | BA81: =BA71/BA73 -> 0 | BB81: =BB71/BB73 -> 0 | BC81: =BC71/BC73 -> 0 | BD81: =BD71/BD73 -> 0 | BE81: =BE71/BE73 -> 0 | BF81: =BF71/BF73 -> 0 | BG81: =BG71/BG73 -> 0 | BH81: =BH71/BH73 -> 0 | BI81: =BI71/BI73 -> 0 | BJ81: =BJ71/BJ73 -> 0 | BK81: =BK71/BK73 -> 0 | BL81: =BL71/BL73 -> 0 | BM81: =BM71/BM73 -> 0 | BN81: =BN71/BN73 -> 0 | BO81: =BO71/BO73 -> 0
B82: 4.17 | C82: Premium | D82: =D72/D73 -> 706.4792 | E82: =E72/E73 -> 0 | F82: =F72/F73 -> 0 | G82: =G72/G73 -> 0 | H82: =H72/H73 -> 0 | I82: =I72/I73 -> 0 | J82: =J72/J73 -> 0 | K82: =K72/K73 -> 0 | L82: =L72/L73 -> 0 | M82: =M72/M73 -> 0 | N82: =N72/N73 -> 0 | O82: =O72/O73 -> 0 | P82: =P72/P73 -> 0 | Q82: =Q72/Q73 -> 0 | R82: =R72/R73 -> 0 | S82: =S72/S73 -> 0 | T82: =T72/T73 -> 0 | U82: =U72/U73 -> 0 | V82: =V72/V73 -> 0 | W82: =W72/W73 -> 0 | X82: =X72/X73 -> 0 | Y82: =Y72/Y73 -> 0 | Z82: =Z72/Z73 -> 0 | AA82: =AA72/AA73 -> 0 | AB82: =AB72/AB73 -> 0 | AC82: =AC72/AC73 -> 0 | AD82: =AD72/AD73 -> 0 | AE82: =AE72/AE73 -> 0 | AF82: =AF72/AF73 -> 0 | AG82: =AG72/AG73 -> 0 | AH82: =AH72/AH73 -> 0 | AI82: =AI72/AI73 -> 0 | AJ82: =AJ72/AJ73 -> 0 | AK82: =AK72/AK73 -> 0 | AL82: =AL72/AL73 -> 0 | AM82: =AM72/AM73 -> 0 | AN82: =AN72/AN73 -> 0 | AO82: =AO72/AO73 -> 0 | AP82: =AP72/AP73 -> 0 | AQ82: =AQ72/AQ73 -> 0 | AR82: =AR72/AR73 -> 0 | AS82: =AS72/AS73 -> 0 | AT82: =AT72/AT73 -> 0 | AU82: =AU72/AU73 -> 0 | AV82: =AV72/AV73 -> 0 | AW82: =AW72/AW73 -> 0 | AX82: =AX72/AX73 -> 0 | AY82: =AY72/AY73 -> 0 | AZ82: =AZ72/AZ73 -> 0 | BA82: =BA72/BA73 -> 0 | BB82: =BB72/BB73 -> 0 | BC82: =BC72/BC73 -> 0 | BD82: =BD72/BD73 -> 0 | BE82: =BE72/BE73 -> 0 | BF82: =BF72/BF73 -> 0 | BG82: =BG72/BG73 -> 0 | BH82: =BH72/BH73 -> 0 | BI82: =BI72/BI73 -> 0 | BJ82: =BJ72/BJ73 -> 0 | BK82: =BK72/BK73 -> 0 | BL82: =BL72/BL73 -> 0 | BM82: =BM72/BM73 -> 0 | BN82: =BN72/BN73 -> 0 | BO82: =BO72/BO73 -> 0

Sheet Wksh 3 - Rating Areas
A1: Rating Area Data Collection [assistive technology users, please reference cell A2 for instructions] | C1: Specify the total number of Rating Areas in your State by selecting the Create Rating Areas button or Ctrl + Shift + R.
A2: Press TAB and directional arrow keys to read through the document. If macros are disabled, press and hold the ALT key and press the F, then I, and then N key. After that, select the Enable All Content option by pressing enter. (note that you can also press the C key to select "Enable All Content") Instructions can be found in cells C1 through C4. If screen reader fails to announce a cell after performing a dropdown selection, please press F2 and then ESC to force the screen reader to resume. | C2: Select only the Rating Areas you are offering plans within and add a factor for each area.
C3: To validate, select the Validate button or Ctrl + Shift + I.
C4: To finalize, select the Finalize button or Ctrl + Shift + F.
A5: Rating Area | B5: Rating Factor
A6: Rating Area 1 | B6: 1.0144
A7: Rating Area 2 | B7: 0.9565
A8: Rating Area 3 | B8: 0.9464
A9: Rating Area 4 | B9: 1.1059
A10: Rating Area 5 | B10: 0.9446
A11: Rating Area 6 | B11: 1.0991
A12: Rating Area 7 | B12: 0.9655
A13: Rating Area 8 | B13: 1.0888

Sheet PlanTemplate (hidden)
A1: REBUILD | C1: Product-Plan Data Collection
C3: Company Legal Name: | D3: =IF('Wksh 1 - Market Experience'!C3<>"", 'Wksh 1 - Market Experience'!C3,"") ->  | N3: State: | O3: =IF('Wksh 1 - Market Experience'!E4="","",'Wksh 1 - Market Experience'!E4) -> 
C4: HIOS Issuer ID: | D4: =IF('Wksh 1 - Market Experience'!C4<>"", 'Wksh 1 - Market Experience'!C4,"") ->  | N4: Market: | O4: =IF('Wksh 1 - Market Experience'!E5="","",'Wksh 1 - Market Experience'!E5) -> 
C5: Effective Date of Rate Change(s): | D5: =IF('Wksh 1 - Market Experience'!#REF!<>"", 'Wksh 1 - Market Experience'!#REF!,"") -> 
C7: Product/Plan Level Calculations
B9: Field # | C9: Section I: General Product and Plan Information
B10: 1.1 | C10: Product Name | K10: Rating Area 1 | L10: AL | M10: New | N10: Platinum | O10: Yes
B11: 1.2 | C11: Product ID | K11: Rating Area 2 | L11: AK | M11: Renewing | N11: Gold | O11: No
B12: 1.3 | C12: Plan Name | K12: Rating Area 3 | L12: AZ | M12: Terminated | N12: Silver
B13: 1.4 | C13: Plan ID (Standard Component ID) | K13: Rating Area 4 | L13: AR | N13: Bronze
B14: 1.5 | C14: Metal | K14: Rating Area 5 | L14: CA | N14: Catastrophic
B15: 1.6 | C15: AV Metal Value | K15: Rating Area 6 | L15: CO | N15: Not Applicable
B16: 1.7 | C16: Plan Category | K16: Rating Area 7 | L16: CT
B17: 1.8 | C17: Plan Type | K17: Rating Area 8 | L17: DC
B18: 1.9 | C18: Exchange Plan? | L18: DE
B19: 1.10 | C19: Effective Date of Proposed Rates | L19: FL
B20: 1.11 | C20: Cumulative Rate Change % (over 12 mos prior) | L20: GA
B21: 1.12 | C21: Product Rate Increase % | L21: HI
B22: 1.13 | C22: Submission Level Rate Increase % | L22: ID
L23: IL
C24: Section II: Experience Period and Current Plan Level Information | L24: IN
B25: 2.1 | C25: Plan ID (Standard Component ID) | D25: Total | E25: =IF(E13<>"",E13,"") ->  | L25: IA
B26: 2.2 | C26: Allowed Claims | D26: =SUM(E26:XFD26) -> 0 | L26: KS
B27: 2.3 | C27: Reinsurance | D27: =SUM(E27:XFD27) -> 0 | L27: KY
B28: 2.4 | C28: Member Cost Sharing | D28: =SUM(E28:XFD28) -> 0 | L28: LA
B29: 2.5 | C29: Cost Sharing Reduction | D29: =SUM(E29:XFD29) -> 0 | L29: ME
B30: 2.6 | C30: Incurred Claims | D30: =D26-D27-D28-D29 -> 0 | E30: =E26-E27-E28-E29 -> 0 | L30: MD
B31: 2.7 | C31: Risk Adjustment Transfer Amount | D31: =SUM(E31:XFD31) -> 0 | L31: MA
B32: 2.8 | C32: Premium | D32: =SUM(E32:XFD32) -> 0 | L32: MI
B33: 2.9 | C33: Experience Period Member Months | D33: =SUM(E33:XFD33) -> 0 | L33: MN
B34: 2.10 | C34: Current Enrollment | D34: =SUM(E34:XFD34) -> 0 | L34: MS
B35: 2.11 | C35: Current Premium PMPM | D35: =SUMPRODUCT(E35:XFD35,E34:XFD34)/D34 ->  | L35: MO
B36: 2.12 | C36: Loss Ratio | D36: =D30/(D31+D32) ->  | E36: =E30/(E31+E32) ->  | L36: MT
C37: Per Member Per Month | L37: NE
B38: 2.13 | C38: Allowed Claims | D38: =D26/D33 ->  | E38: =E26/E33 ->  | L38: NV
B39: 2.14 | C39: Reinsurance | D39: =D27/D33 ->  | E39: =E27/E33 ->  | L39: NH
B40: 2.15 | C40: Member Cost Sharing | D40: =D28/D33 ->  | E40: =E28/E33 ->  | L40: NJ
B41: 2.16 | C41: Cost Sharing Reduction | D41: =D29/D33 ->  | E41: =E29/E33 ->  | L41: NM
B42: 2.17 | C42: Incurred Claims | D42: =D30/D33 ->  | E42: =E30/E33 ->  | L42: NY
B43: 2.18 | C43: Risk Adjustment Transfer Amount | D43: =D31/D33 ->  | E43: =E31/E33 ->  | L43: NC
B44: 2.19 | C44: Premium | D44: =D32/D33 ->  | E44: =E32/E33 ->  | L44: ND
L45: OH
C46: Section III: Plan Adjustment Factors | L46: OK
B47: 3.1 | C47: Plan ID (Standard Component ID) | E47: =IF(E13<>"",E13,"") ->  | L47: OR
B48: 3.2 | C48: Market Adjusted Index Rate | E48: ='Wksh 1 - Market Experience'!F46 -> 0 | L48: PA
B49: 3.3 | C49: AV and Cost Sharing Design of Plan | L49: RI
B50: 3.4 | C50: Provider Network Adjustment | L50: SC
B51: 3.5 | C51: Benefits in Addition to EHB | L51: SD
C52: Administrative Costs | L52: TN
B53: 3.6 | C53: Administrative Expense | L53: TX
B54: 3.7 | C54: Taxes and Fees | L54: UT
B55: 3.8 | C55: Profit & Risk Load | L55: VT
B56: 3.9 | C56: Catastrophic Adjustment | L56: VA
B57: 3.10 | C57: Plan Adjusted Index Rate | E57: =($E$48*PRODUCT(E49:E51)*E56)/(1-SUM(E53:E55)) -> 0 | L57: WA
L58: WV
B59: 3.11 | C59: Age Calibration Factor | E59: =IF(D59<>"", D59, "") ->  | L59: WI
B60: 3.12 | C60: Geographic Calibration Factor | E60: =IF(D60<>"", D60, "") ->  | L60: WY
B61: 3.13 | C61: Tobacco Calibration Factor | E61: =IF(D61<>"", D61, "") -> 
B62: 3.14 | C62: Calibrated Plan Adjusted Index Rate | E62: =E57*(PRODUCT($E$59:$E$61)) -> 0
C64: Section IV: Projected Plan Level Information
B65: 4.1 | C65: Plan ID (Standard Component ID) | D65: Total | E65: =IF(E13<>"",E13,"") -> 
B66: 4.2 | C66: Allowed Claims | D66: =SUM(E66:XFD66) -> 0
B67: 4.3 | C67: Reinsurance | D67: =SUM(E67:XFD67) -> 0
B68: 4.4 | C68: Member Cost Sharing | D68: =SUM(E68:XFD68) -> 0
B69: 4.5 | C69: Cost Sharing Reduction | D69: =SUM(E69:XFD69) -> 0
B70: 4.6 | C70: Incurred Claims | D70: =D66-D67-D68-D69 -> 0 | E70: =E66-E67-E68-E69 -> 0
B71: 4.7 | C71: Risk Adjustment Transfer Amount | D71: =SUM(E71:XFD71) -> 0
B72: 4.8 | C72: Premium | D72: =SUM(E72:XFD72) -> 0
B73: 4.9 | C73: Projected Member Months | D73: =SUM(E73:XFD73) -> 0
B74: 4.10 | C74: Loss Ratio | D74: =D70/(D71+D72) ->  | E74: =E70/(E71+E72) -> 
C75: Per Member Per Month
B76: 4.11 | C76: Allowed Claims | D76: =D66/D73 ->  | E76: =E66/E73 -> 
B77: 4.12 | C77: Reinsurance | D77: =D67/D73 ->  | E77: =E67/E73 -> 
B78: 4.13 | C78: Member Cost Sharing | D78: =D68/D73 ->  | E78: =E68/E73 -> 
B79: 4.14 | C79: Cost Sharing Reduction | D79: =D69/D73 ->  | E79: =E69/E73 -> 
B80: 4.15 | C80: Incurred Claims | D80: =D70/D73 ->  | E80: =E70/E73 -> 
B81: 4.16 | C81: Risk Adjustment Transfer Amount | D81: =D71/D73 ->  | E81: =E71/E73 -> 
B82: 4.17 | C82: Premium | D82: =D72/D73 ->  | E82: =E72/E73 -> 
